Cogmind - Beta 16.1 @@@ ROGUE MODE // 2026.04.22 @ 23:33:28 Player: Peanut Result: Establishing Free Derelict Territories! Performance ------------- Evolutions (9) 4500 Regions Visited (40) 8000 Robots Destroyed (546) 2730 Value Destroyed (32257) 32257 Prototype IDs (123) 2460 Alien Tech Used (4) 800 Bonus (41176) 41176 TOTAL SCORE: 91923 Bonus ------- High Alert Combat Kills 4007 Follower Combat Kills 2115 Entered Garrisons 800 Network Hubs Disabled 400 Met Data Miner 300 Met Imprinter 300 Destroyed Z-Imprinter 1000 Triggered Deep Caves Wall 500 Exposed GOLEM Chamber 500 Acquired ECA 300 Met Warlord at Base 500 MAIN.C Attacked Warlord 500 Built Enhanced Grunts 300 A7 Reached Mainframe 300 Met Warlord at Research 2000 Invited to Help at Command 2000 Destroyed MAIN.C Guards 500 Met MAIN.C 5000 Hacked MAIN.C 300 Destroyed MAIN.C Shell 5000 Destroyed MAIN.C 10000 Met Warlord at Command 2000 Win 3000 Friendly Fire -446 Cogmind --------- Core Integrity 1453/1600 Matter 144/300 Energy 2670/3000 System Corruption 10% Temperature Cool (0) Movement Immobile (Siege) Ox2 Location Free Derelict Territories Parts ------- > --- POWER (3) -------- Hybrid Graviton Reactor Vortex Chain Reactor > --- PROPULSION (6) --- Enhanced Biometal Leg Heavy Shield Leg Myomer Exoskeleton > --- UTILITY (13) ----- High-capacity Storage Unit Assembled Biocell Array Experimental Signal Interpreter Assembled Combat Suite Weapon Mount Improved Armor Integrity Analyzer Advanced Transmission Jammer Experimental Reaction Control System Graphene Brace Thermal Barrier Experimental EM Shield Experimental Force Field Phase Redirector > --- WEAPON (3) ------- Assembled Focal Cannon Hypervelocity Multirail Hypervelocity Multirail > --- INVENTORY (20) --- Improved Quantum Reactor Centrium Leg High-density Centrium Leg High-density Centrium Leg Experimental Cooling System Experimental Cooling System Concept Chromion Battery (800) Concept Chromion Battery (800) Advanced Matter Compressor (250) Long-range Sensor Array Hacking Drone Bay (1/1) Vortex Driver (30) Vortex Driver (30) Improved Potential Cannon Gamma Bomb Array Hellfire Missile Launcher Advanced Remote Datajack Peak State ------------ > --- POWER ------------ Hybrid Graviton Reactor Vortex Chain Reactor > --- PROPULSION ------- Enhanced Biometal Leg Heavy Shield Leg Myomer Exoskeleton > --- UTILITY ---------- High-capacity Storage Unit Assembled Biocell Array Experimental Signal Interpreter Assembled Combat Suite Weapon Mount Improved Armor Integrity Analyzer Advanced Transmission Jammer Experimental Reaction Control System Graphene Brace Thermal Barrier Experimental EM Shield Experimental Force Field Phase Redirector > --- WEAPON ----------- Assembled Focal Cannon Hypervelocity Multirail Hypervelocity Multirail > --- INVENTORY -------- Improved Quantum Reactor Centrium Leg High-density Centrium Leg High-density Centrium Leg Experimental Cooling System Experimental Cooling System Concept Chromion Battery Concept Chromion Battery Advanced Matter Compressor Long-range Sensor Array Hacking Drone Bay Vortex Driver Vortex Driver Improved Potential Cannon Gamma Bomb Array Hellfire Missile Launcher Advanced Remote Datajack [Rating: 253] Favorites ----------- Power Improved Deuterium Engine Engine Improved Deuterium Engine Power Core Light Fission Core Reactor Fusion Reactor Propulsion Assembled Alloy Leg Treads Light Treads Leg Assembled Alloy Leg Wheel Armored Huge Wheel Hover Unit Zionite Glidesys I Utility High-capacity Storage Unit Device Seismic Detector Storage High-capacity Storage Unit Processor Advanced Targeting Computer Hackware Hacking Suite Protection Assembled Alloy Armor Artifact Phase Redirector Weapon Assembled Focal Cannon Energy Gun Plasma Rifle Energy Cannon Assembled Focal Cannon Ballistic Gun Railgun Ballistic Cannon Heavy Linear Accelerator Launcher Precision Rocket Launcher Special Weapon Advanced Remote Datajack Impact Weapon Core Stripper Slashing Weapon Makeshift Axe Piercing Weapon CR-A16's Pointy Stick Build | -11 -10 -10 -10 -9 -8 -8 -8 -8 -7 -7 -7 -7 -7 -7 -6 -6 -6 -6 -6 -6 -6 -6 -5 -5 -5 -5 -5 -5 -4 -4 -4 -4 -3 -3 -3 -2 -2 -2 -1 -1 ------- Run | Yrd Mat Min Exi Min Mat Gar Mat Gar Fac Gar Fac Low Low Dat Pro Fac Gar Fac Low Low Zio Dee Pro Fac Ext Cet Arc Hub Fac Upp Upp War Pro Res Tes Res Qua Frg Acc Com Slots Evolved 18 | . . . . . 4 . . . 2 . . . . . . 2 . . . . . . . 2 . . . . 2 . . . . 2 . 2 . . 2 . Power 2 | . . . . . . . . . . . . . . . . 1 . . . . . . . . . . . . . . . . . . . 1 . . . . Propulsion 4 | . . . . . 2 . . . . . . . . . . 1 . . . . . . . . . . . . 1 . . . . . . . . . . . Utility 11 | . . . . . 1 . . . 2 . . . . . . . . . . . . . . 2 . . . . 1 . . . . 2 . 1 . . 2 . Weapon 1 | . . . . . 1 . . . . . . . . . . . . . . . . . . . . . . . . . . . . . . . . . . . Parts Attached 336 | 8 12 . 1 4 18 15 13 10 18 15 2 8 . . 2 26 15 20 5 2 5 24 . 4 5 4 . 5 24 . . 9 5 11 13 14 14 3 2 . Power 38 | 1 . . . 2 2 . . 1 1 . 1 . . . . 5 3 3 1 . . 4 . . . 3 . . 3 . . . 1 2 1 2 1 1 . . Engine 13 | 1 . . . 1 2 . . . 1 . 1 . . . . 1 2 1 1 . . 2 . . . . . . . . . . . . . . . . . . Core 7 | . . . . 1 . . . 1 . . . . . . . 3 1 1 . . . . . . . . . . . . . . . . . . . . . . Reactor 18 | . . . . . . . . . . . . . . . . 1 . 1 . . . 2 . . . 3 . . 3 . . . 1 2 1 2 1 1 . . Propulsion 84 | 2 4 . . 1 3 4 5 3 2 4 . 1 . . . 8 2 9 . 1 . 6 . 2 3 . . 3 6 . . 2 3 1 3 6 . . . . Treads 26 | 2 3 . . 1 1 3 2 . 2 2 . . . . . 2 . 6 . 1 . 1 . . . . . . . . . . . . . . . . . . Leg 41 | . . . . . . . . . . 1 . 1 . . . 5 2 2 . . . 2 . 2 3 . . 3 5 . . 2 3 1 3 6 . . . . Wheel 15 | . 1 . . . 2 1 3 3 . 1 . . . . . 1 . 1 . . . 1 . . . . . . 1 . . . . . . . . . . . Hover 2 | . . . . . . . . . . . . . . . . . . . . . . 2 . . . . . . . . . . . . . . . . . . Flight . | . . . . . . . . . . . . . . . . . . . . . . . . . . . . . . . . . . . . . . . . . Utility 145 | 2 1 . 1 1 7 5 1 5 12 6 1 7 . . 2 7 5 5 2 . 5 11 . 2 2 1 . 1 15 . . 5 1 8 6 5 10 2 1 . Device 86 | 1 . . . 1 2 1 1 3 6 2 1 5 . . 2 5 4 3 2 . 1 6 . 1 1 . . 1 11 . . 4 1 6 4 2 7 1 1 . Storage 19 | 1 1 . 1 . . 1 . 2 1 1 . . . . . . . 1 . . . 1 . 1 1 . . . 2 . . . . 1 2 1 . 1 . . Processor 13 | . . . . . . . . . 2 1 . . . . . . . . . . 3 . . . . . . . 2 . . 1 . 1 . 2 1 . . . Hackware 3 | . . . . . 1 . . . 1 . . . . . . 1 . . . . . . . . . . . . . . . . . . . . . . . . Protection 23 | . . . . . 4 3 . . 2 2 . 2 . . . 1 1 1 . . 1 4 . . . 1 . . . . . . . . . . 1 . . . Artifact 1 | . . . . . . . . . . . . . . . . . . . . . . . . . . . . . . . . . . . . . 1 . . . Weapon 69 | 3 7 . . . 6 6 7 1 3 5 . . . . . 6 5 3 2 1 . 3 . . . . . 1 . . . 2 . . 3 1 3 . 1 . Energy Gun 17 | 2 3 . . . 1 3 1 . . . . . . . . 3 1 . . . . 2 . . . . . . . . . 1 . . . . . . . . Energy Cannon 22 | . 3 . . . 3 3 . . 2 4 . . . . . 1 . 2 2 . . . . . . . . . . . . 1 . . . . 1 . . . Ballistic Gun 13 | 1 . . . . . . 4 1 . . . . . . . . 4 . . . . . . . . . . . . . . . . . 1 1 . . 1 . Ballistic Cannon 2 | . . . . . . . . . . . . . . . . 2 . . . . . . . . . . . . . . . . . . . . . . . . Launcher 9 | . . . . . 1 . 2 . 1 1 . . . . . . . 1 . 1 . . . . . . . 1 . . . . . . 1 . . . . . Special Weapon 3 | . 1 . . . . . . . . . . . . . . . . . . . . . . . . . . . . . . . . . 1 . 1 . . . Impact Weapon 1 | . . . . . . . . . . . . . . . . . . . . . . . . . . . . . . . . . . . . . 1 . . . Slashing Weapon 1 | . . . . . 1 . . . . . . . . . . . . . . . . . . . . . . . . . . . . . . . . . . . Piercing Weapon 1 | . . . . . . . . . . . . . . . . . . . . . . 1 . . . . . . . . . . . . . . . . . . Special Melee Weapon . | . . . . . . . . . . . . . . . . . . . . . . . . . . . . . . . . . . . . . . . . . Unidentified Prototypes 59 | . . . . 1 2 . 2 . 1 . . 1 . . . 1 . 2 . . 5 10 . 1 1 1 . 2 1 . . 6 . . 6 3 8 4 1 . Parts Lost 60 | . . . . . 1 4 . 3 1 4 . 1 . . . 2 6 3 2 1 1 8 . . . . . 6 14 . . . . . . . . 1 . 2 Power 8 | . . . . . . . . 1 . . . . . . . 1 . 1 1 . . 1 . . . . . 1 2 . . . . . . . . . . . Propulsion 18 | . . . . . . 1 . . . 2 . 1 . . . 1 2 1 . . . 4 . . . . . 2 4 . . . . . . . . . . . Utility 23 | . . . . . 1 1 . 1 . 1 . . . . . . 2 1 . 1 1 2 . . . . . 2 7 . . . . . . . . 1 . 2 Weapon 11 | . . . . . . 2 . 1 1 1 . . . . . . 2 . 1 . . 1 . . . . . 1 1 . . . . . . . . . . . Highest Loss Streak 5 | . . . . . 1 1 . 1 1 2 . 1 . . . 1 2 2 2 1 1 4 . . . . . 2 5 . . . . . . . . 1 . 2 To Critical Strikes . | . . . . . . . . . . . . . . . . . . . . . . . . . . . . . . . . . . . . . . . . . Average Backups 19 | 3 7 10 13 14 14 15 17 18 21 23 22 22 23 23 23 23 22 19 19 19 20 19 19 18 18 19 19 18 18 19 20 19 19 18 18 18 18 19 18 18 Power . | . . . . . . . 1 . . . 1 1 1 1 1 . . . . . . . 1 1 1 1 1 1 . 1 1 1 1 1 1 1 1 1 1 1 Propulsion 2 | 1 3 4 4 4 2 2 2 4 5 5 3 3 3 3 3 2 1 2 2 2 3 1 . 1 2 3 3 2 1 2 3 2 2 2 2 2 3 3 3 3 Utility 10 | . . 1 4 5 5 6 6 6 9 10 12 11 12 12 12 12 12 9 8 8 8 11 14 13 12 12 12 12 13 11 11 11 10 9 9 11 9 10 8 8 Weapon 5 | 1 3 5 5 5 6 5 6 6 5 6 5 6 6 6 6 7 7 6 7 8 7 5 4 3 3 3 3 3 3 3 4 4 5 4 4 4 4 4 5 5 Tool/Special . | . . . . . . . . . . . . . . . . . . . . . . . . . . . . . . . . . . . . . . . . . Unused Backups 87 | . 9 . 2 4 7 3 3 . 6 7 2 . . . . 2 2 6 . 1 3 2 . 2 1 . . . 1 . . 2 . 1 8 4 2 1 . 6 Power 7 | . 1 . . . . . 1 . . . . . . . . . 1 . . . . . . . . . . . 1 . . 1 . . . . 1 . . 1 Propulsion 14 | . 5 . . . . . . . 1 3 2 . . . . . . 2 . . . . . . . . . . . . . 1 . . . . . . . . Utility 32 | . 1 . 2 3 1 1 2 . 2 . . . . . . 1 1 2 . 1 1 1 . 2 1 . . . . . . . . . 3 3 1 1 . 2 Weapon 32 | . 2 . . 1 6 2 . . 3 3 . . . . . 1 . 2 . . 2 1 . . . . . . . . . . . . 5 1 . . . 3 Tool/Special 2 | . . . . . . . . . . 1 . . . . . . . . . . . . . . . . . . . . . . . 1 . . . . . . Average Slot Usage (%) 90 | . 99 100 100 100 99 99 95 80 90 90 83 80 84 84 84 87 94 95 92 92 92 89 86 87 88 92 92 93 87 92 94 89 93 94 92 85 81 81 83 84 Engine 3 | . 14 14 14 9 9 9 9 1 6 7 7 7 7 7 7 2 1 1 5 6 6 4 . . . . . . . . . . . . . . . . . . Core 1 | . . . . 4 . . . 7 . . . . . . . 5 5 4 6 6 6 . . . . . . . . . . . . . . . . . . . Reactor 4 | . . . . . . . . . . . . . . . . 3 4 3 . . . 5 6 5 5 9 11 10 6 10 10 10 10 9 9 8 8 8 8 8 Treads 7 | . 26 14 14 14 17 17 13 . 12 13 15 8 7 7 7 4 . 7 20 20 20 15 . . . . . . . . . . . . . . . . . . Leg 12 | . . . . . . . . . . 1 . 2 7 7 7 13 24 23 . . . 5 26 27 29 29 27 29 26 31 31 31 31 28 21 16 13 13 12 12 Wheel 5 | . 1 14 14 14 17 18 18 18 8 6 7 7 7 7 7 6 4 . 6 6 6 4 6 1 . . . . 2 . . . . . . . . . . . Device 16 | . 13 14 14 14 8 10 14 14 14 13 7 7 7 7 7 9 12 15 20 19 14 10 13 16 17 17 17 17 20 20 21 20 20 23 27 26 25 25 27 28 Storage 8 | . 14 14 14 14 9 9 9 9 7 7 7 7 7 7 7 6 6 6 6 6 6 6 13 11 11 11 11 11 10 10 10 10 10 8 9 8 8 8 8 8 Processor 3 | . . . . . . . . . 7 7 7 7 7 7 7 6 6 6 6 6 6 5 . . . . . . . . . . . 3 4 7 8 8 8 8 Protection 4 | . . . . . 8 6 3 3 6 5 7 7 7 7 7 5 5 2 . . 4 5 . 4 5 4 5 4 4 4 5 5 5 4 4 4 4 4 4 3 Energy Gun 1 | . 6 . . . . 6 16 . . . . . . . . 12 10 . . . . . . . . . . . . . . . . . . . . . . . Energy Cannon 14 | . 15 28 28 28 25 17 1 10 22 22 22 22 23 23 23 4 . . 10 19 20 16 13 11 11 10 10 11 12 13 15 10 15 14 11 4 4 4 4 4 Ballistic Gun 2 | . 3 . . . . . 7 15 . . . . . . . . 8 19 8 . . . . . . . . . . . . . . . 1 4 3 3 5 7 Peak Build Rating 253 | 7 11 11 13 20 27 38 48 53 58 59 61 66 60 60 63 82 90 94 85 80 78 121 124 144 142 141 139 148 159 157 157 158 158 181 210 227 235 229 252 253 Average Rating 103 | 5 9 11 12 14 24 30 37 46 54 54 58 58 60 60 60 74 80 84 79 76 73 87 123 140 139 137 136 142 147 154 157 148 157 177 199 222 225 225 246 248 On Entrance 100 | . 7 10 11 13 15 25 38 42 49 55 58 58 60 60 60 60 77 84 85 80 76 73 121 124 140 139 139 139 137 153 157 157 157 158 179 208 224 225 226 249 Avg Prop Armor Cover (%) 11 | . 10 10 10 9 11 14 15 . 13 12 9 5 7 7 7 11 13 17 16 18 15 10 2 2 . . . . 12 . . . . . . . . . . . Naked Turns . | . . . . . . . . . . . . . . . . . . . . . . . . . . . . . . . . . . . . . . . . . Heaviest Build 164 | 14 24 24 34 47 58 72 72 74 125 127 128 134 132 132 134 157 142 97 97 97 96 115 134 144 139 129 129 136 147 128 126 131 140 153 149 156 164 151 164 164 Greatest Support 183 | 40 40 12 12 12 24 24 56 56 56 28 28 28 28 28 28 28 84 120 28 28 28 114 114 137 136 133 133 141 169 161 161 164 166 183 182 182 180 180 180 180 Greatest Overweight (x) 10 | 1 1 1 2 3 4 2 2 1 4 4 4 4 4 4 4 5 5 3 3 3 3 7 10 1 1 . . . 5 . . . 1 . . . . . . . Average Overweight (x) 1 | . . 1 1 2 1 1 1 1 3 3 4 4 4 4 4 4 2 . 2 3 3 1 1 . . . . . 1 . . . . . . . . . . . Largest Inventory Capacity 25 | 8 10 10 15 15 15 20 20 20 25 25 25 25 25 25 25 25 25 20 20 20 20 20 20 20 20 20 20 20 20 20 20 20 20 20 20 20 20 20 20 20 Average Capacity 20 | 7 8 10 14 15 15 17 20 20 23 25 25 25 25 25 25 25 23 20 20 20 20 20 20 20 20 20 20 20 20 20 20 20 20 19 20 20 20 20 20 20 Most Carried 25 | 5 10 10 15 15 15 20 20 20 25 25 25 25 25 25 25 25 25 20 20 20 20 20 20 20 20 20 20 20 20 20 20 20 20 20 20 20 20 20 20 20 Average Carried 20 | 3 7 10 13 14 14 17 19 19 22 24 24 24 25 25 25 24 23 19 19 19 19 19 20 19 19 20 19 19 19 19 20 19 19 19 19 19 19 19 19 19 Final Capacity 25 | 8 10 10 15 15 15 20 20 20 25 25 25 25 25 25 25 25 20 20 20 20 20 20 20 20 20 20 20 20 20 20 20 20 20 20 20 20 20 20 20 20 Final Carried 25 | 5 10 10 15 15 15 20 20 20 25 25 25 25 25 25 25 25 20 20 20 20 20 20 20 19 20 20 20 19 18 20 20 20 20 20 20 20 20 20 20 18 Class Distribution -------------------- 23% | Gunner 19% | Golem 17% | Scavenger-Gunner 8% | Mutant 4% | Scavenger-Tank 3% | Scavenger-Golem 3% | Tank 3% | Commander-Golem 3% | Infiltrator-Gunner 3% | Infiltrator-Tank Dominant Class ---------------- Mutant | -10/Materials Mutant | -10/Mines Mutant | -10/Exiles Mutant | -9/Mines Tank | -8/Materials Tank | -8/Garrison Scavenger-Gunner | -8/Materials Scavenger-Gunner | -8/Garrison Gunner | -7/Factory Gunner | -7/Garrison Gunner | -7/Factory Gunner | -7/Lower Caves Gunner | -7/Lower Caves Gunner | -7/Data Miner Gunner | -6/Proximity Caves Gunner | -6/Factory Gunner | -6/Garrison Scavenger-Gunner | -6/Factory Scavenger-Gunner | -6/Lower Caves Scavenger-Gunner | -6/Lower Caves Scavenger-Gunner | -6/Zion Scavenger-Gunner | -6/Deep Caves Golem | -5/Proximity Caves Golem | -5/Factory Golem | -5/Extension Commander-Golem | -5/Cetus Commander-Golem | -5/Archives Golem | -5/Hub_04(d) Golem | -4/Factory Golem | -4/Upper Caves Golem | -4/Upper Caves Mutant | -4/Warlord Golem | -3/Proximity Caves Scavenger-Golem | -3/Research Scavenger-Skirmisher | -3/Testing Scavenger-Tank | -2/Research Infiltrator-Tank | -2/Quarantine Infiltrator-Gunner | -2/Protoforge Infiltrator-Gunner | -1/Access Infiltrator-Gunner | -1/Command Resources | -11 -10 -10 -10 -9 -8 -8 -8 -8 -7 -7 -7 -7 -7 -7 -6 -6 -6 -6 -6 -6 -6 -6 -5 -5 -5 -5 -5 -5 -4 -4 -4 -4 -3 -3 -3 -2 -2 -2 -1 -1 ----------- Run | Yrd Mat Min Exi Min Mat Gar Mat Gar Fac Gar Fac Low Low Dat Pro Fac Gar Fac Low Low Zio Dee Pro Fac Ext Cet Arc Hub Fac Upp Upp War Pro Res Tes Res Qua Frg Acc Com Matter Collected 15479 | 255 192 73 10 50 405 420 675 992 415 507 106 312 . . 84 755 1408 858 373 149 89 646 135 395 195 60 20 369 1217 130 17 . 290 378 1299 404 705 184 736 171 Remotely . | . . . . . . . . . . . . . . . . . . . . . . . . . . . . . . . . . . . . . . . . . Salvage Created 30620 | 50 287 120 54 130 1398 1173 1165 1440 1103 1103 185 737 20 . 112 1366 2125 1034 106 333 . 2221 232 880 1054 208 199 1151 3865 352 . . 599 1174 1352 446 1206 240 1400 . Parts 1333 | 11 23 5 2 7 71 62 54 65 51 37 4 26 2 . 3 31 64 45 . 12 . 28 7 34 64 10 4 63 206 14 . . 24 61 91 18 44 16 74 . Haulers Intercepted 23 | . 2 . . . 4 . 3 . . . . 1 . . . . . 3 . . . . . . . . . . 6 . . . . 1 . . . . 3 . Recyclers Shooed 9 | . . . . . . . . . . . . . . . . 2 . . . . . . . . . . . 1 2 . . . . . 4 . . . . . Parts Field Recycled . | . . . . . . . . . . . . . . . . . . . . . . . . . . . . . . . . . . . . . . . . . Retrieved Matter . | . . . . . . . . . . . . . . . . . . . . . . . . . . . . . . . . . . . . . . . . . Parts Self-Destructed 68 | . . . . . . . . . . . . 17 . . 3 . . . . 8 3 . 3 . . . . . . 14 . . 20 . . . . . . . Prevented 5 | . . . . . . . . . . . . 5 . . . . . . . . . . . . . . . . . . . . . . . . . . . . Parts Restored . | . . . . . . . . . . . . . . . . . . . . . . . . . . . . . . . . . . . . . . . . . Kills | -11 -10 -10 -10 -9 -8 -8 -8 -8 -7 -7 -7 -7 -7 -7 -6 -6 -6 -6 -6 -6 -6 -6 -5 -5 -5 -5 -5 -5 -4 -4 -4 -4 -3 -3 -3 -2 -2 -2 -1 -1 ------- Run | Yrd Mat Min Exi Min Mat Gar Mat Gar Fac Gar Fac Low Low Dat Pro Fac Gar Fac Low Low Zio Dee Pro Fac Ext Cet Arc Hub Fac Upp Upp War Pro Res Tes Res Qua Frg Acc Com Combat Hostiles Destroyed 511 | . 10 2 . 4 23 27 16 20 18 26 3 12 1 . 4 17 35 11 1 9 . 61 12 16 18 3 2 16 64 8 . . 7 15 18 6 10 3 13 . Melee 2 | . . . . . . . . . . . . . . . . . . . . . . . . . . . . 1 1 . . . . . . . . . . . Guns 117 | . 9 . . . . 2 10 10 . . . . . . . 10 29 9 . . . . . . . . . . . . . . . . 8 6 9 2 13 . Cannons 206 | . 1 1 . 2 16 17 . 5 16 19 3 5 1 . 1 3 . 1 . 4 . 9 6 8 14 3 2 5 34 4 . . 7 11 7 . . 1 . . AOE 131 | . . 1 . 2 5 7 4 5 1 3 . 5 . . 3 1 1 . . 4 . 36 6 8 4 . . 6 20 4 . . . 4 1 . . . . . Classes Destroyed 29 | 1 3 . . . 7 2 2 . 1 1 . 1 1 . . . 1 1 . . . 4 1 . . . . . 1 . . . . . . 1 1 . . . Worker 15 | . . . . . 1 . 1 . 1 . . . . . . . . 1 . . . . . 1 . . . 4 2 . . . . . 1 . 2 . 1 . Builder 15 | . . . . . . . 3 . . . . . . . . 1 . . . . . . . . 1 . . 3 5 . . . . 1 1 . . . . . Tunneler 5 | 3 . 1 . . . . 1 . . . . . . . . . . . . . . . . . . . . . . . . . . . . . . . . . Hauler 23 | . 2 . . . 4 . 3 . . . . 1 . . . . . 3 . . . . . . . . . . 6 . . . . 1 . . . . 3 . Recycler 8 | . . . . . 1 . . . . . . . . . . 3 . . . . . . . 2 . . . . 1 . . . . 1 . . . . . . Minesweeper 5 | . . . . . . . . . . . . 3 . . . . . . 1 . . . . . . . . . . . . . 1 . . . . . . . Mechanic 2 | . . . . . 1 . . . 1 . . . . . . . . . . . . . . . . . . . . . . . . . . . . . . . Operator 7 | . . . . . 1 . . . 1 . . . . . . 2 . . . . . . . . . . . . 1 . . . . . . . 2 . . . Drone 3 | . . . . . . . . . . . . . . . . . . . . . . . 2 . . . . 1 . . . . . . . . . . . . Watcher 6 | . . . . . 1 . 1 . . . . . . . . . . . . . . . . . . . . . . . . . . 1 . . . 1 2 . Swarmer 93 | . 9 . . 2 4 9 . 3 . 4 . 3 . . 3 2 6 . . 4 . . 5 5 4 . . . 21 4 . . . 4 . 1 . . . . Cutter 3 | . . . . . . . . . . 3 . . . . . . . . . . . . . . . . . . . . . . . . . . . . . . Saboteur 1 | . . . . . . . . . . . . . . . . . . . . . . . . . . . . . 1 . . . . . . . . . . . Grunt 153 | . 1 2 . 2 10 8 12 5 9 13 . 8 . . . 8 18 4 . 3 . . 4 9 6 . . 5 11 1 . . 1 . 4 . 2 . 7 . Brawler 9 | . . . . . . . . . 1 1 . 1 . . . . 2 . . . . . . 1 . . . . 1 2 . . . . . . . . . . Duelist 10 | . . . . . . . 1 2 1 1 . . . . . . 3 . . 1 . . . . . . . 1 . . . . . . . . . . . . Protector 2 | . . . . . . . . . . . . . . . . . . 1 . . . . . . . . . . 1 . . . . . . . . . . . Sentry 58 | . . . . . 6 5 3 4 2 2 2 . . . 1 4 2 3 1 1 . . 1 1 5 . 2 1 4 1 . . 2 4 . 1 . . . . Specialist 4 | . . . . . . 1 . . . 1 . . . . . . . . . . . . . . . . . . 2 . . . . . . . . . . . Hunter 41 | . . . . . 3 1 . 4 . 1 . . . . . 1 2 2 . . . . . . 1 . . 6 8 . . . 4 2 2 2 2 . . . Programmer 63 | . . . . . . 3 . 2 5 . 1 . . . . 2 1 1 . . . . . . . . . 2 14 . . . . 5 12 1 5 3 6 . Behemoth 4 | . . . . . . . . . . . . . . . . . 1 . . . . . . . 1 . . 1 1 . . . . . . . . . . . Cetus Guard 3 | . . . . . . . . . . . . . . . . . . . . . . . . . . 3 . . . . . . . . . . . . . . Executioner 1 | . . . . . . . . . . . . . . . . . . . . . . . . . . . . . . . . . . . . 1 . . . . Fortress 1 | . . . . . . . . . . . . . . . . . . . . . . . . . . . . . . . . . . . . . 1 . . . Z-Light 3 | . . . . . . . . . . . . . . . . . . . . . . 3 . . . . . . . . . . . . . . . . . . Thief 1 | . . . . . . . . . . . . . 1 . . . . . . . . . . . . . . . . . . . . . . . . . . . Assembler 2 | . . . . . . . . . . . . . . . . . . . . . . 2 . . . . . . . . . . . . . . . . . . Assembled 42 | . . . . . . . . . . . . . . . . . . . . . . 42 . . . . . . . . . . . . . . . . . . Golem 16 | . . . . . . . . . . . . . . . . . . . . . . 16 . . . . . . . . . . . . . . . . . . Wasp 3 | . . . . . . . . . . . . . . . . . . . . . . . . . . . . . . . . . . . . . 3 . . . Guerrilla 1 | . . . . . . . . . . . . . . . . . . . . . . . . . 1 . . . . . . . . . . . . . . . Best Kill Streak 38 | 3 3 2 . 2 4 8 7 3 5 7 1 6 1 . 3 4 4 4 1 4 . 38 6 9 7 3 2 6 10 4 . . 2 5 4 4 3 1 8 . Combat Bots Only 36 | . 3 2 . 2 4 8 5 3 4 7 1 5 1 . 3 3 4 4 1 4 . 36 6 9 7 3 2 3 9 4 . . 2 4 4 4 2 1 5 . Max Kills in Single Turn 19 | 1 2 2 . 2 3 3 2 2 1 3 1 2 1 . 3 2 1 2 1 2 . 19 3 2 4 1 1 7 3 3 . . 1 2 1 1 2 1 2 . Gunslinging 1 | . 1 . . . . . . 1 . . . . . . . . . 1 . . . . . . . . . . . . . . . . . . . . . . Exploded 18 | . . 1 . 2 3 3 2 2 1 3 . 2 . . 3 1 1 . . 2 . 18 3 2 4 . . 2 3 3 . . . 2 1 . . . . . Melee 1 | . . . . . . . . . . . . . . . . . . . . . . . . . . . . 1 1 . . . . . . . . . . . Uniques/NPCs Destroyed . | . . . . . . . . . . . . . . . . . . . . . . . . . . . . . . . . . . . . . . . . . Combat | -11 -10 -10 -10 -9 -8 -8 -8 -8 -7 -7 -7 -7 -7 -7 -6 -6 -6 -6 -6 -6 -6 -6 -5 -5 -5 -5 -5 -5 -4 -4 -4 -4 -3 -3 -3 -2 -2 -2 -1 -1 -------- Run | Yrd Mat Min Exi Min Mat Gar Mat Gar Fac Gar Fac Low Low Dat Pro Fac Gar Fac Low Low Zio Dee Pro Fac Ext Cet Arc Hub Fac Upp Upp War Pro Res Tes Res Qua Frg Acc Com Hostile Shots Fired 2256 | . 33 2 . 16 50 109 35 74 84 133 39 70 1 . 24 99 181 81 21 26 . 82 28 31 54 14 3 225 476 9 12 . 44 70 49 12 20 8 10 31 Missed 841 | . 6 . . 2 20 27 12 16 33 51 18 16 1 . 7 36 59 22 8 4 . 21 9 12 22 6 1 105 211 4 7 . 19 31 21 4 8 4 7 11 Deflected 1 | . . . . . . . . . . . . . . . . . . . . . . . . . . . . . . . . . . . . . . . . 1 Hits 1415 | . 27 2 . 14 30 82 23 58 51 82 21 54 . . 17 63 122 59 13 22 . 61 19 19 32 8 2 120 265 5 5 . 25 39 28 8 12 4 3 20 Melee 31 | . . . . . . . 2 1 3 15 . 2 . . . . 6 . . 1 . 1 . . . . . . . . . . . . . . . . . . Projectile 1384 | . 27 2 . 14 30 82 21 57 48 67 21 52 . . 17 63 116 59 13 21 . 60 19 19 32 8 2 120 265 5 5 . 25 39 28 8 12 4 3 20 AOE 5 | . . . . . . . . . . 3 . . . . . . . . . . . . . . . . . 1 . . . . . . . . . . . 1 Critical Strikes 61 | . . . . . 1 6 1 2 3 6 . 2 . . . 2 6 2 . . . . . . 3 1 . 8 11 . . . 1 1 2 1 1 1 . . Part Disruptions 5 | . . . . . . . . . . . . . . . . 1 . . . . . . . . . . . . . . . . . . . . . . . 4 Actively Blocked 1 | . . . . . . . . . . . . . . . . . . . . . . . . . . . . . . . . . . . . . . . . 1 Damage Taken 22914 | . 220 29 . 135 417 1099 396 878 832 1357 298 896 . . 157 857 2126 671 258 463 . 1964 382 291 336 133 69 2428 3809 93 115 . 226 666 500 109 123 11 9 561 Core 2707 | . 33 15 . 20 61 130 11 175 103 215 17 65 . . 5 . 166 156 . 18 . 304 37 16 38 . . 366 390 . . . 28 143 39 . 6 3 1 146 Absorbed by Shields 1557 | . . . . . . 36 . . . 5 . . . . . 49 297 . . . . . . . 249 41 . . 321 . . . 87 16 . 112 126 12 11 195 Redirected to Core 114 | . . . . . . . . . . . . . . . . . . . . . . . . . . . . . . . . . . . . . 6 . 1 107 Redirected to Shielding 327 | . . . . . . 5 4 45 . . . . . . . . . . . . . 207 . . . . . . . . . . . . . . . . . 66 Ignored by Resistances 2297 | . . . . . . 121 . . . . . . . . . . . . . . . . . 58 118 35 14 457 827 19 23 . 68 140 102 46 132 73 18 46 Regen/Repaired (Parts) 568 | . . . . . . . . . . . 114 . . . . . . . . . 140 . . . . . . . 244 . . 70 . . . . . . . . Core Remaining (%) 66 | 100 . . . 72 . . . 31 . . . . . . 42 . . . . . . . 19 . . . . 58 . . . . 63 . 86 . . 99 . 90 Volleys Fired 1507 | 3 26 9 1 5 38 76 45 102 43 76 37 27 7 . 3 79 139 34 7 19 4 77 22 40 32 9 7 39 127 13 2 . 36 39 93 40 62 16 49 24 Largest 3 | 2 2 2 2 2 3 3 3 3 3 3 3 3 3 . 3 3 3 3 3 3 1 3 3 2 2 2 2 3 3 3 3 . 3 3 3 2 2 1 2 2 Hottest 309 | 70 112 112 112 112 175 255 213 255 255 250 140 140 140 . 140 240 230 162 309 309 90 309 80 50 50 50 50 93 80 75 75 . 75 75 100 75 75 50 100 100 Shots Fired 2784 | 6 44 11 2 10 111 146 105 180 96 146 50 69 11 . 7 177 296 90 17 43 4 156 38 61 62 18 14 57 224 28 6 . 66 80 123 42 63 16 68 41 Gun 865 | 6 31 . . . . 24 83 89 . . . . . . . 125 264 79 9 . . . . . . . . . . . . . . . 15 15 28 9 50 38 Cannon 1751 | . 5 11 2 10 110 115 6 76 91 145 50 63 11 . 6 52 23 11 8 40 4 146 31 54 61 18 14 38 193 25 6 . 66 78 103 21 35 6 16 1 Launcher 146 | . . . . . 1 7 16 15 5 1 . 6 . . 1 . 9 . . 3 . 10 7 7 1 . . 19 31 3 . . . 2 2 . . . . . Special 22 | . 8 . . . . . . . . . . . . . . . . . . . . . . . . . . . . . . . . . 3 6 . 1 2 2 Kinetic 549 | 3 7 . . . . . 31 89 . . . . . . . 14 162 79 9 . . . . . . . . . . . . . . . 15 15 28 9 50 38 Thermal 1722 | 3 32 . . . . 50 58 76 91 122 50 63 11 . 6 162 125 3 8 40 4 52 31 54 61 18 14 38 193 25 6 . 66 78 103 21 35 6 16 1 Explosive 59 | . . . . . 1 7 . . . 1 . 2 . . 1 . 1 . . 3 . 10 7 7 1 . . 2 11 3 . . . 2 . . . . . . Electromagnetic 440 | . 5 11 2 10 110 89 16 15 5 23 . 4 . . . 1 8 8 . . . 94 . . . . . 17 20 . . . . . 2 . . . . . Robot Hit Streak 51 | 3 12 6 4 5 12 12 7 24 29 20 16 20 1 . 7 12 22 22 11 12 . 41 9 30 16 15 12 17 22 29 . . 39 36 51 10 10 5 35 36 Robot Miss Streak 9 | . 5 1 . 2 3 3 5 7 2 7 2 1 2 . . 9 3 2 2 2 . 3 2 1 2 1 1 2 2 . . . 2 1 4 4 2 3 2 3 Penetration Max 2 | . . . . . . . . . . . . . . . . . 1 2 . . . . . . . . . . . . . . . . 1 2 1 . 1 2 Secondary Targets 13 | . 2 . . . . . . 2 . . . . . . . . 7 2 . . . . . . . . . . . . . . . . . . . . . . Max Gunslinging Chain 1 | . 1 . . . . . . 1 . . . . . . . . 1 1 . . . . . . . . . . . . . . . . . . . . . . Shots Hit Robots 1705 | 3 22 9 2 6 70 69 63 111 61 67 14 48 2 . 6 100 186 67 11 29 . 115 22 40 48 15 12 39 157 7 . . 37 56 72 19 29 11 48 32 Core Hits 1093 | 3 14 4 1 4 44 40 36 46 34 32 5 23 2 . 5 43 77 32 3 11 . 136 18 31 27 9 5 43 125 12 . . 13 27 40 15 35 6 44 48 Critical Kills 55 | . . . . . . . . 2 . 1 . 2 . . . . 1 . 1 . . . . . . . . . . . . . . . 8 6 12 3 19 . Critical Parts Destroyed 83 | . . . . . . . . 1 . . . . . . . . 1 . . . . . . . . . . . . . . . . . 5 10 18 6 28 14 Critical Strikes 181 | . 1 . . . 1 . 3 3 . 1 . 2 . . . 15 5 . 1 . . 4 . . . . . . 1 . . . . . 13 17 30 9 50 25 Burn 22 | . 1 . . . . . 3 . . . . . . . . 15 3 . . . . . . . . . . . . . . . . . . . . . . . Meltdown 6 | . . . . . . . . 2 . 1 . 2 . . . . . . 1 . . . . . . . . . . . . . . . . . . . . . Destroy 147 | . . . . . . . . 1 . . . . . . . . 2 . . . . . . . . . . . . . . . . . 13 17 30 9 50 25 Corrupt 5 | . . . . . 1 . . . . . . . . . . . . . . . . 4 . . . . . . . . . . . . . . . . . . Impale 1 | . . . . . . . . . . . . . . . . . . . . . . . . . . . . . 1 . . . . . . . . . . . Melee Attacks 43 | . . . . . 4 9 5 . . . . . . . . . . . . . . . . 4 1 . . 8 10 . . . . . . . 2 . . . Kinetic 2 | . . . . . . . . . . . . . . . . . . . . . . . . . . . . . . . . . . . . . 2 . . . Impact . | . . . . . . . . . . . . . . . . . . . . . . . . . . . . . . . . . . . . . . . . . Slashing 18 | . . . . . 4 9 5 . . . . . . . . . . . . . . . . . . . . . . . . . . . . . . . . . Piercing 23 | . . . . . . . . . . . . . . . . . . . . . . . . 4 1 . . 8 10 . . . . . . . . . . . Sneak Attacks 4 | . . . . . . . . . . . . . . . . . . . . . . . . 3 1 . . . . . . . . . . . . . . . Combat Hostiles . | . . . . . . . . . . . . . . . . . . . . . . . . . . . . . . . . . . . . . . . . . Follow-up Attacks . | . . . . . . . . . . . . . . . . . . . . . . . . . . . . . . . . . . . . . . . . . Damage Inflicted 71383 | 38 313 315 50 188 2320 2366 2095 2949 2270 2073 389 1680 54 . 358 2520 5136 2279 337 1326 . 6764 2045 2669 2684 624 583 3987 11391 1166 . . 1815 3233 2990 198 647 164 711 656 Guns 12824 | 38 241 . . . . 61 996 923 . . . . . . . 2044 4223 2066 204 . . . . . . . . . . . . . . . 149 160 365 107 644 603 Cannons 37365 | . 72 224 50 107 1706 1412 29 1465 1813 1857 389 1189 54 . 160 395 426 213 133 947 . 3394 785 1501 2317 624 583 1088 6231 811 . . 1815 2774 2536 38 50 57 67 53 Explosions 19715 | . . 91 . 81 614 645 1070 561 457 216 . 491 . . 198 81 487 . . 379 . 3370 1260 983 297 . . 2749 4715 355 . . . 434 181 . . . . . Melee 789 | . . . . . . 248 . . . . . . . . . . . . . . . . . 185 70 . . 111 141 . . . . . . . 34 . . . Ramming 690 | . . . . . . . . . . . . . . . . . . . . . . . . . . . . 39 304 . . . . 25 124 . 198 . . . Kinetic 8047 | . 35 . . . . . 295 923 . . . . . . . 86 2376 2066 204 . . . . . . . . . . . . . . . 149 160 399 107 644 603 Thermal 37629 | 38 206 91 . 81 310 567 925 1465 1813 1614 389 1189 54 . 160 2434 2326 . 133 947 . 1137 785 1501 2317 624 583 1116 6623 811 . . 1815 2774 2536 38 50 57 67 53 Explosive 11200 | . . . . . 304 556 . . . 154 . 200 . . 198 . 93 . . 379 . 3301 1260 983 297 . . 199 2487 355 . . . 434 . . . . . . Electromagnetic 13062 | . 72 224 50 107 1706 995 875 561 457 305 . 291 . . . . 341 213 . . . 2326 . . . . . 2522 1836 . . . . . 181 . . . . . Impact . | . . . . . . . . . . . . . . . . . . . . . . . . . . . . . . . . . . . . . . . . . Slashing 248 | . . . . . . 248 . . . . . . . . . . . . . . . . . . . . . . . . . . . . . . . . . . Piercing 507 | . . . . . . . . . . . . . . . . . . . . . . . . 185 70 . . 111 141 . . . . . . . . . . . Highest Corruption 10 | . . . . . . 3 3 6 1 1 2 2 . . . . . . . . . . . . . . . 7 6 2 2 2 . 3 8 . 1 1 5 10 Average Corruption 2 | . . . . . . 2 3 5 1 1 1 1 . . . . . . . . . . . . . . . 1 2 2 2 2 . 2 5 . 1 1 5 8 Corruption Purged 7 | . . . . . . . . . . . . 2 . . . . . . . . . . . . . . . . 5 . . . . . . . . . . . Corruption Blocked . | . . . . . . . . . . . . . . . . . . . . . . . . . . . . . . . . . . . . . . . . . Effects 281 | . . . . . . 20 22 49 7 19 9 1 . . . . . . . . . . . . . . . 4 44 14 8 . . 13 53 . . 2 5 11 Message Errors 50 | . . . . . . 3 2 8 . 1 3 . . . . . . . . . . . . . . . . 1 8 3 2 . . 4 11 . . . 2 2 Matter Fused 64 | . . . . . . 3 6 12 . 4 3 . . . . . . . . . . . . . . . . . 9 4 1 . . 3 15 . . 1 . 3 Heat Flow Errors 47 | . . . . . . 2 5 4 2 2 2 1 . . . . . . . . . . . . . . . 1 11 2 1 . . 4 8 . . 1 . 1 Energy Discharges 38 | . . . . . . 5 1 9 2 2 1 . . . . . . . . . . . . . . . . . 6 1 3 . . . 7 . . . . 1 Parts Fused 2 | . . . . . . . . 1 . . . . . . . . . . . . . . . . . . . . . 1 . . . . . . . . . . Data Loss (minor) 36 | . . . . . . 3 4 8 1 5 . . . . . . . . . . . . . . . . . 2 4 1 . . . . 5 . . . 2 1 Data Loss (major) 13 | . . . . . . 1 1 2 . 2 . . . . . . . . . . . . . . . . . . 5 1 . . . . 1 . . . . . Misfires 14 | . . . . . . 3 2 1 2 . . . . . . . . . . . . . . . . . . . . 1 . . . . 3 . . . 1 1 Alerts 6 | . . . . . . . 1 2 . 1 . . . . . . . . . . . . . . . . . . . . 1 . . . 1 . . . . . Weapon Failures 11 | . . . . . . . . 2 . 2 . . . . . . . . . . . . . . . . . . 1 . . . . 2 2 . . . . 2 Overload Shots 26 | . . . . . . . . . . 3 7 . . . . 12 . . . . 4 . . . . . . . . . . . . . . . . . . . Effects 2 | . . . . . . . . . . . 1 . . . . 1 . . . . . . . . . . . . . . . . . . . . . . . . Heat Surge 1 | . . . . . . . . . . . 1 . . . . . . . . . . . . . . . . . . . . . . . . . . . . . Short Circuit 1 | . . . . . . . . . . . . . . . . 1 . . . . . . . . . . . . . . . . . . . . . . . . Overflow Damage 2303 | . . 30 . . 28 64 57 61 24 38 . 44 . . . 63 . . . 81 . 166 109 130 55 . . 136 670 17 . . 112 178 122 . 118 . . . Projectiles 1211 | . . 30 . . . 21 . 44 12 5 . 44 . . . 63 . . . 35 . 83 41 27 55 . . 48 356 . . . 112 113 122 . . . . . Explosions 929 | . . . . . 28 43 57 17 12 33 . . . . . . . . . 46 . 83 68 83 . . . 88 289 17 . . . 65 . . . . . . Melee 163 | . . . . . . . . . . . . . . . . . . . . . . . . 20 . . . . 25 . . . . . . . 118 . . . Knockbacks 5 | . . . . . . . . . . . . . . . . . . . . . . . . . . . . . 1 . . . . . 1 . 3 . . . Impact 5 | . . . . . . . . . . . . . . . . . . . . . . . . . . . . . 1 . . . . . 1 . 3 . . . Kinetic . | . . . . . . . . . . . . . . . . . . . . . . . . . . . . . . . . . . . . . . . . . Secondary . | . . . . . . . . . . . . . . . . . . . . . . . . . . . . . . . . . . . . . . . . . Self-Inflicted Damage 395 | . . . . . . 95 13 24 . 62 . . . . . 42 13 . . 17 . 26 . . . . . 82 21 . . . . . . . . . . . Shots 12 | . . . . . . 2 1 2 . 1 . . . . . 1 1 . . 1 . 1 . . . . . 1 1 . . . . . . . . . . . Rammed . | . . . . . . . . . . . . . . . . . . . . . . . . . . . . . . . . . . . . . . . . . Targets Rammed 26 | . . . . . . . . . . . . . . . . . . . . . . . . . . . . 1 13 . . . . 2 6 . 4 . . . Kicked 26 | . . . . . . . . . . . . . . . . . . . . . . . . . . . . 1 13 . . . . 2 6 . 4 . . . Crushed . | . . . . . . . . . . . . . . . . . . . . . . . . . . . . . . . . . . . . . . . . . Highest Temperature 384 | 40 215 120 51 153 307 344 383 254 269 197 233 174 174 . 18 316 351 333 184 193 24 384 25 6 3 . 108 354 252 217 184 . 161 278 236 . . 69 . 130 Average Temperature 89 | 19 59 54 28 68 91 100 109 87 71 51 71 53 88 . 8 96 104 76 107 116 12 131 16 3 2 . 51 112 67 99 91 . 57 118 78 . . 46 . 36 Received Heat Transfer 4648 | . 6 18 . 18 162 282 180 144 309 255 42 399 . . 24 200 665 177 36 99 . 355 111 123 57 . . 531 309 . 18 . 6 18 39 . 12 . . 53 Effects 18 | . 3 . . . 2 . . . 1 . . . . . . 5 . 2 . . . 1 . . . . . 3 1 . . . . . . . . . . . Shutdowns 3 | . . . . . . . . . . . . . . . . . . . . . . 1 . . . . . 2 . . . . . . . . . . . . Energy Bleed 1 | . . . . . . . . . 1 . . . . . . . . . . . . . . . . . . . . . . . . . . . . . . . Interference 13 | . 3 . . . 2 . . . . . . . . . . 5 . 2 . . . . . . . . . . 1 . . . . . . . . . . . Damage (minor) 1 | . . . . . . . . . . . . . . . . . . . . . . . . . . . . 1 . . . . . . . . . . . . Siege Activations . | . . . . . . . . . . . . . . . . . . . . . . . . . . . . . . . . . . . . . . . . . Martial Activations . | . . . . . . . . . . . . . . . . . . . . . . . . . . . . . . . . . . . . . . . . . Shielding Activations 1 | . . . . . . . . . . . . . . . . . . . . . . . . . . . . . . . . . . . . . . . . 1 Total Turns 35 | . . . . . . . . . . . . . . . . . . . . . . . . . . . . . . . . . . . . . . . . 35 Longest Duration 35 | . . . . . . . . . . . . . . . . . . . . . . . . . . . . . . . . . . . . . . . . 35 Robots Disrupted . | . . . . . . . . . . . . . . . . . . . . . . . . . . . . . . . . . . . . . . . . . Combat Hostiles . | . . . . . . . . . . . . . . . . . . . . . . . . . . . . . . . . . . . . . . . . . Robots Corrupted 41 | . . . . . 2 1 2 . 1 . . 1 . . . . 1 1 . . . 16 . . . . . 4 9 . . . . . 1 . 2 . . . Combat Hostiles 39 | . . . . . 2 1 2 . 1 . . 1 . . . . 1 1 . . . 16 . . . . . 4 9 . . . . . 1 . . . . . Parts Fried 69 | . . 1 . . 4 6 2 3 7 1 . 3 . . . . 1 2 . . . . . . . . . 15 15 . . . . . 7 . 2 . . . Impact Corruptions 6 | . . . . . . . . . . . . . . . . . . . . . . . . . . . . . 2 . . . . . . . 4 . . . Robots Melted 20 | . . . . . . . 1 2 . 4 . 3 . . . 4 4 . 1 1 . . . . . . . . . . . . . . . . . . . . Combat Hostiles 14 | . . . . . . . . . . 4 . 1 . . . 3 4 . 1 1 . . . . . . . . . . . . . . . . . . . . Parts Melted 81 | . 2 . . . . 2 3 1 7 9 1 5 . . 1 24 10 . 1 4 . 1 . . . . . . 6 1 . . . 1 2 . . . . . Heat Transferred 39235 | 111 629 100 . 100 400 705 1849 1776 2250 2519 583 1899 74 . 248 6533 5067 . 187 1246 . 1080 462 850 1200 375 300 625 3711 475 . . 975 1425 1350 25 25 25 50 6 Parts Sabotaged . | . . . . . . . . . . . . . . . . . . . . . . . . . . . . . . . . . . . . . . . . . Parts Stolen . | . . . . . . . . . . . . . . . . . . . . . . . . . . . . . . . . . . . . . . . . . Parts Stripped 18 | . . . . . . . . . . . . . . . . . . . . . . . . . . . . . . . . . . . . . 18 . . . Power Chain Reactions 21 | . . 1 . 1 4 1 5 1 . 1 . . . . . . 1 . . . . 1 . . . . . 2 3 . . . . . . . . . . . Alert | -11 -10 -10 -10 -9 -8 -8 -8 -8 -7 -7 -7 -7 -7 -7 -6 -6 -6 -6 -6 -6 -6 -6 -5 -5 -5 -5 -5 -5 -4 -4 -4 -4 -3 -3 -3 -2 -2 -2 -1 -1 ------- Run | Yrd Mat Min Exi Min Mat Gar Mat Gar Fac Gar Fac Low Low Dat Pro Fac Gar Fac Low Low Zio Dee Pro Fac Ext Cet Arc Hub Fac Upp Upp War Pro Res Tes Res Qua Frg Acc Com Maximum Alert Level 5 | . . . . . 1 4 3 4 3 5 3 . . . . 1 5 3 . . . . . 1 2 1 1 4 4 . . . . 1 1 2 1 . 2 1 Low Security (%) 32 | 100 100 100 . 100 79 5 . . . . . . . . . 34 . . . . . . . 12 37 . 94 21 . . . . . 81 70 47 23 100 70 21 Level 1 26 | . . . . . 20 24 16 5 26 5 . . . . . 65 17 . . . . . . 87 38 100 5 20 31 . . . . 18 29 9 76 . 21 78 Level 2 18 | . . . . . . 27 54 27 69 13 15 . . . . . 27 . . . . . . . 23 . . 25 45 . . . . . . 42 . . 8 . Level 3 15 | . . . . . . 26 29 36 3 37 84 . . . . . 21 100 . . . . . . . . . 27 18 . . . . . . . . . . . Level 4 6 | . . . . . . 16 . 30 . 38 . . . . . . 28 . . . . . . . . . . 5 4 . . . . . . . . . . . Level 5 . | . . . . . . . . . . 5 . . . . . . 5 . . . . . . . . . . . . . . . . . . . . . . . High Security . | . . . . . . . . . . . . . . . . . . . . . . . . . . . . . . . . . . . . . . . . . Max Security . | . . . . . . . . . . . . . . . . . . . . . . . . . . . . . . . . . . . . . . . . . Peak Influence 1836 | 10 99 71 . 99 337 1517 772 1427 749 1634 862 . . . . 332 1836 963 . . . . . 367 637 385 227 1144 1195 . . . . 267 287 508 341 117 458 289 Initial 963 | . . . . . . 116 739 340 749 250 857 . . . . . 215 963 . . . . . 300 158 311 83 . 541 . . . . . 88 147 244 117 18 289 Average 430 | 1 31 7 . 14 156 703 560 915 490 1027 767 . . . . 183 857 853 . . . . . 277 296 291 70 551 561 . . . . 97 171 285 241 59 151 236 Influence Increases 20688 | 15 285 76 . 160 872 1441 725 1117 614 1424 174 340 . . 90 795 1701 393 40 200 . . 245 828 889 187 194 2027 2070 170 . . 165 482 779 762 537 130 727 34 Destroy 0b10 Robot/C 9880 | . 200 40 . 120 480 640 420 400 380 520 60 240 . . 80 340 780 200 20 180 . . 200 320 420 80 80 560 1260 160 . . 140 300 360 200 260 60 380 . Destroy 0b10 Robot/NC 565 | 15 10 5 . . 45 10 45 30 15 . . 20 . . . 35 10 25 5 . . . 10 15 20 5 . 40 80 . . . 5 20 20 5 25 10 40 . Destroy Leader 1780 | . 44 10 . 20 150 30 108 50 100 40 30 20 . . 10 102 50 76 . 20 . . 20 50 56 . . 152 242 10 . . 20 94 72 72 40 22 70 . Allied During Kill 1256 | . . . . 14 18 38 43 2 10 . . . . . . 12 11 . . . . . . . 341 85 80 386 . . . . . . 18 65 47 11 75 . Trap Triggered on 0b10 60 | . . . . . . . . . . . . . . . . . . . . . . . . . . . . . 40 . . . . . 20 . . . . . Successful Hack 368 | . 8 . . . 30 14 8 14 42 14 30 . . . . 49 14 12 . . . . . 24 . 9 . . 20 . . . . . 52 . . . 24 4 Disable Machine 1200 | . . 15 . . 30 60 60 135 . 150 45 . . . . 30 45 30 . . . . . 45 . . 30 90 105 . . . . . 135 60 75 . 45 15 Anti-Garrison Action 2750 | . . . . . . 450 . 400 . 550 . . . . . 150 600 . . . . . . . . . . 300 . . . . . . . 300 . . . . Destroy Structure 1764 | . 8 6 . 6 44 169 41 71 22 105 9 . . . . 62 131 20 . . . . . 74 52 8 4 274 248 . . . . 68 72 60 90 12 93 15 Advance Influence 300 | . . . . . . . . . . . . . . . . . . . . . . . . 300 . . . . . . . . . . . . . . . . Lose Combat Pursuer 765 | . 15 . . . 75 30 . 15 45 45 . 60 . . . 15 60 30 15 . . . 15 . . . . 225 75 . . . . . 30 . . 15 . . Influence Decreases 20515 | 15 285 76 . 160 693 103 1718 214 1683 148 1139 844 165 . 90 487 173 1367 804 298 . . 245 504 656 536 402 920 2007 873 423 44 165 324 674 590 763 308 305 314 Entered New Map 6488 | . . . . . . 63 778 184 678 108 777 248 32 . . . 93 873 320 19 . . . . 166 246 125 . 566 433 89 44 . . 70 116 191 92 13 164 Time Decay 10916 | 15 285 76 . 149 453 . 410 . 595 . 362 586 133 . 90 417 . 464 464 269 . . 235 494 490 190 237 300 691 440 334 . 165 324 604 474 542 206 292 130 Lost Part 500 | . . . . . 10 40 . 30 10 40 . 10 . . . 10 60 30 20 10 . . . . . . . 60 140 . . . . . . . . 10 . 20 Lost Ally 961 | . . . . 11 80 . 80 . 100 . . . . . . 60 20 . . . . . 10 10 . 100 40 410 10 . . . . . . . 30 . . . Purge Threat 1650 | . . . . . 150 . 450 . 300 . . . . . . . . . . . . . . . . . . 150 600 . . . . . . . . . . . Squads Dispatched 94 | . 3 . . . 3 . 7 . 8 . 3 . . . . 7 . 4 . 1 . . . 2 1 . . 16 11 . . . . 3 6 . 10 1 6 2 Investigation 7 | . 1 . . . 1 . 1 . 1 . . . . . . 1 . . . . . . . . . . . 2 . . . . . . . . . . . . Extermination 29 | . . . . . . . . . 4 . 1 . . . . 2 . 1 . . . . . 2 . . . 1 5 . . . . 2 4 . 4 1 2 . Reinforcement 30 | . 2 . . . 2 . 3 . 1 . . . . . . 2 . 2 . . . . . . 1 . . 6 3 . . . . 1 2 . 2 . 1 2 Assault 17 | . . . . . . . 1 . 2 . 2 . . . . 2 . 1 . 1 . . . . . . . 5 3 . . . . . . . . . . . Garrison 11 | . . . . . . . 2 . . . . . . . . . . . . . . . . . . . . 2 . . . . . . . . 4 . 3 . Intercept . | . . . . . . . . . . . . . . . . . . . . . . . . . . . . . . . . . . . . . . . . . Searches Triggered . | . . . . . . . . . . . . . . . . . . . . . . . . . . . . . . . . . . . . . . . . . Data Miner Redirects 2 | . . . . . . . . . . . . . . . . . . 1 . . . . . . . . . . 1 . . . . . . . . . . . Construction Impeded 6 | . . . . . . . 2 . 1 . . . . . . . . . . . . . . . . . . 2 1 . . . . . . . . . . . Haulers Reinforced 4 | . . . . . . . . . . . . . . . . . . 2 . . . . . . . . . 1 1 . . . . . . . . . . . Active Scanning Responses . | . . . . . . . . . . . . . . . . . . . . . . . . . . . . . . . . . . . . . . . . . Cargo Convoy Interrupts 2 | . . . . . . . . . . . . . . . . . . . . . . . . . . . . . 1 . . . . 1 . . . . . . Stealth | -11 -10 -10 -10 -9 -8 -8 -8 -8 -7 -7 -7 -7 -7 -7 -6 -6 -6 -6 -6 -6 -6 -6 -5 -5 -5 -5 -5 -5 -4 -4 -4 -4 -3 -3 -3 -2 -2 -2 -1 -1 --------- Run | Yrd Mat Min Exi Min Mat Gar Mat Gar Fac Gar Fac Low Low Dat Pro Fac Gar Fac Low Low Zio Dee Pro Fac Ext Cet Arc Hub Fac Upp Upp War Pro Res Tes Res Qua Frg Acc Com Distress Signals 45 | . . . . . 4 . 3 . 1 . . . . . . . . . . . . . . . 1 1 . 3 6 . . 1 . 3 3 12 3 . 1 3 Communications Jammed 243 | . . . . . . . . . 4 . . . . . . 25 . 1 . . . . . 53 33 . . 70 28 . . . . 17 5 . 4 3 . . Distress Signals 236 | . . . . . . . . . 4 . . . . . . 25 . 1 . . . . . 53 33 . . 69 28 . . . . 14 5 . 1 3 . . Times Spotted 703 | . 19 2 . 7 36 32 26 21 31 23 5 13 1 . 4 25 42 16 2 9 . 58 14 25 20 5 3 56 90 1 1 2 7 27 32 14 9 6 10 9 Peak Tracking Total 37 | . 5 2 . 3 5 6 5 3 5 7 1 5 1 . 3 4 4 5 1 4 . 37 5 4 5 5 2 16 10 3 1 2 2 6 4 10 2 2 2 4 Tactical Retreats 40 | . 1 . . . 3 1 . 1 2 1 . 2 . . . 1 4 1 1 . . 8 1 . . . . 6 5 . . . . . 1 . . 1 . . Traps | -11 -10 -10 -10 -9 -8 -8 -8 -8 -7 -7 -7 -7 -7 -7 -6 -6 -6 -6 -6 -6 -6 -6 -5 -5 -5 -5 -5 -5 -4 -4 -4 -4 -3 -3 -3 -2 -2 -2 -1 -1 ------- Run | Yrd Mat Min Exi Min Mat Gar Mat Gar Fac Gar Fac Low Low Dat Pro Fac Gar Fac Low Low Zio Dee Pro Fac Ext Cet Arc Hub Fac Upp Upp War Pro Res Tes Res Qua Frg Acc Com Traps Triggered 52 | . 1 . . . 1 5 1 5 3 8 1 . . . . . 9 7 . . . . . 1 . . . 4 1 . . . . 2 . . 1 . 1 1 Indirectly 4 | . . . . . . . 1 . . . . . . . . . . . . . . . . . . . . 3 . . . . . . . . . . . . Trap Hack Attempts . | . . . . . . . . . . . . . . . . . . . . . . . . . . . . . . . . . . . . . . . . . Triggered . | . . . . . . . . . . . . . . . . . . . . . . . . . . . . . . . . . . . . . . . . . Disarmed 4 | . . . . . 4 . . . . . . . . . . . . . . . . . . . . . . . . . . . . . . . . . . . Reprogrammed . | . . . . . . . . . . . . . . . . . . . . . . . . . . . . . . . . . . . . . . . . . Reused 7 | . . . . . . . . . . . . . . . . . . . 1 . . . . . . . . . 4 . . . . . 2 . . . . . Traps Extracted . | . . . . . . . . . . . . . . . . . . . . . . . . . . . . . . . . . . . . . . . . . Installed 11 | . . . . . . . . . . . . . . . . . . . 2 . . . . . . . . . 4 . . . 3 . 2 . . . . . Triggered 7 | . . . . . . . . . . . . . . . . . . . 1 . . . . . . . . . 4 . . . . . 2 . . . . . Most Traps Carried 5 | . . . . . . 1 1 4 4 4 4 4 4 4 4 4 4 4 4 4 4 4 4 4 4 4 4 4 4 1 1 1 5 5 5 . . . . . Machines | -11 -10 -10 -10 -9 -8 -8 -8 -8 -7 -7 -7 -7 -7 -7 -6 -6 -6 -6 -6 -6 -6 -6 -5 -5 -5 -5 -5 -5 -4 -4 -4 -4 -3 -3 -3 -2 -2 -2 -1 -1 ---------- Run | Yrd Mat Min Exi Min Mat Gar Mat Gar Fac Gar Fac Low Low Dat Pro Fac Gar Fac Low Low Zio Dee Pro Fac Ext Cet Arc Hub Fac Upp Upp War Pro Res Tes Res Qua Frg Acc Com Machines Disabled 125 | . . 1 . . 2 12 4 16 . 19 3 . . . . 3 12 2 . . 3 2 . 3 1 . 2 8 7 1 . . . . 9 6 5 . 3 1 Max in Single Turn 3 | . . 1 . . 1 2 1 2 . 2 1 . . . . 3 1 1 . . 1 1 . 1 1 . . 3 3 1 . . . . 1 1 1 . 1 . Garrison Access 8 | . . . . . . . . . . . . . . . . 1 . . . . . . . . . . . 2 2 . . . . 1 . 2 . . . . Garrison Relay 24 | . . . . . . 6 . 5 . 5 . . . . . . 8 . . . . . . . . . . . . . . . . . . . . . . . Phase Generator 3 | . . . . . . 1 . 1 . 1 . . . . . . . . . . . . . . . . . . . . . . . . . . . . . . Network Hub 2 | . . . . . . . . . . . . . . . . . . . . . . . . . . . . 2 . . . . . . . . . . . . Machines Repaired . | . . . . . . . . . . . . . . . . . . . . . . . . . . . . . . . . . . . . . . . . . Machines Dismantled . | . . . . . . . . . . . . . . . . . . . . . . . . . . . . . . . . . . . . . . . . . Machines Sabotaged . | . . . . . . . . . . . . . . . . . . . . . . . . . . . . . . . . . . . . . . . . . Overloaded Fab Kills . | . . . . . . . . . . . . . . . . . . . . . . . . . . . . . . . . . . . . . . . . . Hacking | -11 -10 -10 -10 -9 -8 -8 -8 -8 -7 -7 -7 -7 -7 -7 -6 -6 -6 -6 -6 -6 -6 -6 -5 -5 -5 -5 -5 -5 -4 -4 -4 -4 -3 -3 -3 -2 -2 -2 -1 -1 --------- Run | Yrd Mat Min Exi Min Mat Gar Mat Gar Fac Gar Fac Low Low Dat Pro Fac Gar Fac Low Low Zio Dee Pro Fac Ext Cet Arc Hub Fac Upp Upp War Pro Res Tes Res Qua Frg Acc Com Machines Accessed 118 | . 6 . 4 1 11 3 5 2 12 3 8 1 . 4 . 15 1 6 1 . . . . 6 . 1 . . 9 1 . 6 . 4 3 1 1 1 1 1 Terminals 58 | . 5 . . . 8 3 4 2 10 3 5 1 . . . 7 1 4 . . . . . 3 . 1 . . . . . . . . . . . . . 1 Fabricators 7 | . . . . . . . . . . . 1 . . . . 2 . 1 . . . . . 1 . . . . 1 . . . . 1 . . . . . . Repair Stations 5 | . . . . . . . . . . . 1 . . . . 1 . 1 . . . . . . . . . . 2 . . . . . . . . . . . Recycling Units 10 | . 1 . . . 1 . . . . . 1 . . . . 2 . . . . . . . 1 . . . . 3 . . . . 1 . . . . . . Scanalyzers 11 | . . . . . 1 . . . 1 . . . . . . 2 . . . . . . . 1 . . . . 1 . . . . 1 2 . . 1 1 . Garrison Access 10 | . . . . . 1 . 1 . 1 . . . . . . 1 . . . . . . . . . . . . 2 . . . . 1 1 1 1 . . . Total Hacks 259 | . 9 . 7 1 25 9 9 3 29 4 21 1 . 32 . 26 1 10 1 . . . . 8 . 1 . . 21 1 . 11 . 10 8 1 3 3 1 3 Successful 157 | . 4 . 7 1 12 2 8 1 16 1 12 1 . 32 . 16 1 3 1 . . . . 3 . 1 . . 11 1 . 11 . 5 4 . 1 . 1 1 Failed 100 | . 5 . . . 13 7 1 2 12 3 9 . . . . 10 . 7 . . . . . 5 . . . . 10 . . . . 4 4 1 2 3 . 2 Catastrophic 17 | . 1 . . . 1 1 . . 3 2 2 . . . . 2 . 2 . . . . . 1 . . . . . . . . . . . . 1 1 . . Database Lockouts 2 | . . . . . . . . . 1 . . . . . . . . . . . . . . . . . . . . . . . . 1 . . . . . . Manual 38 | . . . 1 . 8 . 2 . 8 . 4 . . . . 4 . 3 . . . . . 3 . 1 . . . . . 1 . . . 1 . . . 2 Terminals 122 | . 7 . . . 20 9 8 3 22 4 15 1 . . . 15 1 7 . . . . . 5 . 1 . . . . . . . . . . 1 . . 3 Fabricators 12 | . . . . . . . . . . . 1 . . . . 3 . 1 . . . . . 1 . . . . 2 . . . . 4 . . . . . . Repair Stations 17 | . . . . . . . . . . . 4 . . . . 1 . 2 . . . . . . . . . . 10 . . . . . . . . . . . Recycling Units 17 | . 2 . . . 2 . . . . . 1 . . . . 3 . . . . . . . 1 . . . . 6 . . . . 2 . . . . . . Scanalyzers 25 | . . . . . 2 . . . 5 . . . . . . 3 . . . . . . . 1 . . . . 1 . . . . 3 6 . . 3 1 . Garrison Access 13 | . . . . . 1 . 1 . 2 . . . . . . 1 . . . . . . . . . . . . 2 . . . . 1 2 1 2 . . . Terminal Hacks 97 | . 3 . 7 1 8 2 7 1 8 1 4 1 . 32 . 4 1 1 1 . . . . . . 1 . . . 1 . 11 . . . . 1 . . 1 Record 28 | . . . 6 . . . . . . . . 1 . 11 . . . . . . . . . . . . . . . 1 . 9 . . . . . . . . Part Schematic 11 | . . . . . . . . . . . . . . 11 . . . . . . . . . . . . . . . . . . . . . . . . . . Robot Schematic 8 | . . . . . . . . . 1 . . . . 7 . . . . . . . . . . . . . . . . . . . . . . . . . . Robot Analysis 1 | . 1 . . . . . . . . . . . . . . . . . . . . . . . . . . . . . . . . . . . . . . . Prototype ID Bank 3 | . . . . . . . . . . . . . . 3 . . . . . . . . . . . . . . . . . . . . . . . . . . Open Door 7 | . . . . 1 . 1 . . . . . . . . . . . . 1 . . . . . . 1 . . . . . 2 . . . . . . . 1 Branch Access Points 3 | . 1 . . . . . . . . . 1 . . . . 1 . . . . . . . . . . . . . . . . . . . . . . . . Emergency Access Points 3 | . . . . . . 1 . 1 . . . . . . . . 1 . . . . . . . . . . . . . . . . . . . . . . . Terminal Index 2 | . . . . . . . . . 1 . 1 . . . . . . . . . . . . . . . . . . . . . . . . . . . . . Alert Level 6 | . . . . . 1 . 2 . 1 . 1 . . . . . . . . . . . . . . . . . . . . . . . . . 1 . . . Unreport Threat 6 | . . . . . 1 . 3 . 2 . . . . . . . . . . . . . . . . . . . . . . . . . . . . . . . Locate Traps 5 | . 1 . . . 1 . 1 . 2 . . . . . . . . . . . . . . . . . . . . . . . . . . . . . . . Disarm Traps 1 | . . . . . 1 . . . . . . . . . . . . . . . . . . . . . . . . . . . . . . . . . . . Maintenance Status 1 | . . . . . . . . . . . . . . . . 1 . . . . . . . . . . . . . . . . . . . . . . . . Security Status 1 | . . . . . 1 . . . . . . . . . . . . . . . . . . . . . . . . . . . . . . . . . . . Hauler Manifests 2 | . . . . . 1 . . . . . . . . . . 1 . . . . . . . . . . . . . . . . . . . . . . . . Registered Components 1 | . . . . . . . . . 1 . . . . . . . . . . . . . . . . . . . . . . . . . . . . . . . Zone Layout 6 | . . . . . 2 . 1 . . . 1 . . . . 1 . 1 . . . . . . . . . . . . . . . . . . . . . . Patrol Navigation 1 | . . . . . . . . . . 1 . . . . . . . . . . . . . . . . . . . . . . . . . . . . . . Proto ID Catalog 1 | . . . 1 . . . . . . . . . . . . . . . . . . . . . . . . . . . . . . . . . . . . . Fabricator Hacks 6 | . . . . . . . . . . . 1 . . . . 3 . . . . . . . . . . . . 1 . . . . 1 . . . . . . Network Status 4 | . . . . . . . . . . . . . . . . 2 . . . . . . . . . . . . 1 . . . . 1 . . . . . . Build 2 | . . . . . . . . . . . 1 . . . . 1 . . . . . . . . . . . . . . . . . . . . . . . . Repair Station Hacks 10 | . . . . . . . . . . . 3 . . . . . . 1 . . . . . . . . . . 6 . . . . . . . . . . . Scan Component 6 | . . . . . . . . . . . 2 . . . . . . 1 . . . . . . . . . . 3 . . . . . . . . . . . Repair 4 | . . . . . . . . . . . 1 . . . . . . . . . . . . . . . . . 3 . . . . . . . . . . . Recycling Unit Hacks 10 | . 1 . . . 1 . . . . . 1 . . . . 3 . . . . . . . 1 . . . . 2 . . . . 1 . . . . . . Process 1 | . . . . . . . . . . . . . . . . 1 . . . . . . . . . . . . . . . . . . . . . . . . Retrieve Matter 1 | . . . . . . . . . . . . . . . . 1 . . . . . . . . . . . . . . . . . . . . . . . . Retrieve Components 8 | . 1 . . . 1 . . . . . 1 . . . . 1 . . . . . . . 1 . . . . 2 . . . . 1 . . . . . . Scanalyzer 16 | . . . . . 2 . . . 3 . . . . . . 3 . . . . . . . 1 . . . . . . . . . 2 4 . . . 1 . Insert Component 1 | . . . . . 1 . . . . . . . . . . . . . . . . . . . . . . . . . . . . . . . . . . . Retrieve Study 15 | . . . . . 1 . . . 3 . . . . . . 3 . . . . . . . 1 . . . . . . . . . 2 4 . . . 1 . Garrison Access Hacks 7 | . . . . . 1 . 1 . 1 . . . . . . 1 . . . . . . . . . . . . 2 . . . . 1 . . . . . . Unlock Access 4 | . . . . . 1 . 1 . 1 . . . . . . 1 . . . . . . . . . . . . . . . . . . . . . . . . Seal Access 3 | . . . . . . . . . . . . . . . . . . . . . . . . . . . . . 2 . . . . 1 . . . . . . Unauthorized Hacks 11 | . . . . . . . . . 4 . 3 . . . . 2 . 1 . . . . . 1 . . . . . . . . . . . . . . . . Terminals 11 | . . . . . . . . . 4 . 3 . . . . 2 . 1 . . . . . 1 . . . . . . . . . . . . . . . . Track 1 | . . . . . . . . . . . . . . . . . . 1 . . . . . . . . . . . . . . . . . . . . . . Assimilate 1 | . . . . . . . . . . . . . . . . . . . . . . . . 1 . . . . . . . . . . . . . . . . Botnet 7 | . . . . . . . . . 3 . 2 . . . . 2 . . . . . . . . . . . . . . . . . . . . . . . . Operators 2 | . . . . . . . . . 1 . 1 . . . . . . . . . . . . . . . . . . . . . . . . . . . . . Fabricators . | . . . . . . . . . . . . . . . . . . . . . . . . . . . . . . . . . . . . . . . . . Repair Stations . | . . . . . . . . . . . . . . . . . . . . . . . . . . . . . . . . . . . . . . . . . Recycling Units . | . . . . . . . . . . . . . . . . . . . . . . . . . . . . . . . . . . . . . . . . . Scanalyzers . | . . . . . . . . . . . . . . . . . . . . . . . . . . . . . . . . . . . . . . . . . Garrison Access . | . . . . . . . . . . . . . . . . . . . . . . . . . . . . . . . . . . . . . . . . . Data Cores Recovered 4 | . . . . . 1 . . . 1 . . . . . . 1 . . . . . . . . . . . . . . . . . . . . 1 . . . Used 1 | . . . . . . . . . 1 . . . . . . . . . . . . . . . . . . . . . . . . . . . . . . . Hacking Detections 71 | . 4 . . . 7 2 4 2 10 2 7 1 . . . 11 1 6 . . . . . 4 . 1 . . 4 . . . . . 2 1 1 1 . . Full Trace Events 1 | . . . . . . . . . . . . . . . . 1 . . . . . . . . . . . . . . . . . . . . . . . . Feedback Events . | . . . . . . . . . . . . . . . . . . . . . . . . . . . . . . . . . . . . . . . . . Feedback Blocked . | . . . . . . . . . . . . . . . . . . . . . . . . . . . . . . . . . . . . . . . . . Robot Schematics Acquired 8 | . . . . . . . . . 1 . . . . 7 . . . . . . . . . . . . . . . . . . . . . . . . . . Robots Built 3 | . . . . . . . . . . . . . . . . 3 . . . . . . . . . . . . . . . . . . . . . . . . Authchips . | . . . . . . . . . . . . . . . . . . . . . . . . . . . . . . . . . . . . . . . . . Time 76 | . . . . . . . . . . . . . . . . 76 . . . . . . . . . . . . . . . . . . . . . . . . Total Robot Build Rating 15 | . . . . . . . . . . . . . . . . 15 . . . . . . . . . . . . . . . . . . . . . . . . Part Schematics Acquired 11 | . . . . . . . . . . . . . . 11 . . . . . . . . . . . . . . . . . . . . . . . . . . Parts Built 2 | . . . . . . . . . . . 2 . . . . . . . . . . . . . . . . . . . . . . . . . . . . . Authchips . | . . . . . . . . . . . . . . . . . . . . . . . . . . . . . . . . . . . . . . . . . Time 106 | . . . . . . . . . . . 106 . . . . . . . . . . . . . . . . . . . . . . . . . . . . . Total Part Build Rating 12 | . . . . . . . . . . . 12 . . . . . . . . . . . . . . . . . . . . . . . . . . . . . Part Studies Acquired 15 | . . . . . 1 . . . 3 . . . . . . 3 . . . . . . . 1 . . . . . . . . . 2 4 . . . 1 . Parts Repaired 4 | . . . . . . . . . . . 1 . . . . . . . . . . . . . . . . . 3 . . . . . . . . . . . Time 152 | . . . . . . . . . . . 61 . . . . . . . . . . . . . . . . . 91 . . . . . . . . . . . Parts Recycled . | . . . . . . . . . . . . . . . . . . . . . . . . . . . . . . . . . . . . . . . . . Recycled Matter 5 | . . . . . . . . . . . . . . . . 5 . . . . . . . . . . . . . . . . . . . . . . . . Retrieved Matter 5 | . . . . . . . . . . . . . . . . 5 . . . . . . . . . . . . . . . . . . . . . . . . Retrieved Components 27 | . 9 . . . 10 . . . . . 1 . . . . . . . . . . . . 3 . . . . 4 . . . . . . . . . . . Parts Scanalyzed . | . . . . . . . . . . . . . . . . . . . . . . . . . . . . . . . . . . . . . . . . . Part Schematics Acquired . | . . . . . . . . . . . . . . . . . . . . . . . . . . . . . . . . . . . . . . . . . Parts Damaged . | . . . . . . . . . . . . . . . . . . . . . . . . . . . . . . . . . . . . . . . . . Bothacking | -11 -10 -10 -10 -9 -8 -8 -8 -8 -7 -7 -7 -7 -7 -7 -6 -6 -6 -6 -6 -6 -6 -6 -5 -5 -5 -5 -5 -5 -4 -4 -4 -4 -3 -3 -3 -2 -2 -2 -1 -1 ------------ Run | Yrd Mat Min Exi Min Mat Gar Mat Gar Fac Gar Fac Low Low Dat Pro Fac Gar Fac Low Low Zio Dee Pro Fac Ext Cet Arc Hub Fac Upp Upp War Pro Res Tes Res Qua Frg Acc Com Used RIF Installer . | . . . . . . . . . . . . . . . . . . . . . . . . . . . . . . . . . . . . . . . . . Robots Hacked 10 | . . . . . . . . . . . . . . . . . . . . . . . . . . . . . . . . . . . 1 5 . 1 1 2 Non-combat 1 | . . . . . . . . . . . . . . . . . . . . . . . . . . . . . . . . . . . . 1 . . . . Combat 6 | . . . . . . . . . . . . . . . . . . . . . . . . . . . . . . . . . . . 1 4 . . . 1 Robot Hacks Applied 7 | . . . . . . . . . . . . . . . . . . . . . . . . . . . . . . . . . . . 1 5 . . . 1 parse_system 7 | . . . . . . . . . . . . . . . . . . . . . . . . . . . . . . . . . . . 1 5 . . . 1 Manual 3 | . . . . . . . . . . . . . . . . . . . . . . . . . . . . . . . . . . . . . . 1 1 1 Relay Couplers Released 110 | . . . . . . 23 . 20 . 24 . . . . . 3 33 . . . . . . . . . . 3 . . . . . 1 . 3 . . . . Machine Destruction 110 | . . . . . . 23 . 20 . 24 . . . . . 3 33 . . . . . . . . . . 3 . . . . . 1 . 3 . . . . Fabnet Peak Effective % . | . . . . . . . . . . . . . . . . . . . . . . . . . . . . . . . . . . . . . . . . . Robots Rewired 18 | . . . 2 . . 2 . 6 . . . . . . . . 1 . . . . . . . 6 . . . . . . . . . 1 . . . . . Allies Hacked 1 | . . . . . . . . . . . . . . . . . . . . . . . . 1 . . . . . . . . . . . . . . . . Hacks Repelled . | . . . . . . . . . . . . . . . . . . . . . . . . . . . . . . . . . . . . . . . . . Allies | -11 -10 -10 -10 -9 -8 -8 -8 -8 -7 -7 -7 -7 -7 -7 -6 -6 -6 -6 -6 -6 -6 -6 -5 -5 -5 -5 -5 -5 -4 -4 -4 -4 -3 -3 -3 -2 -2 -2 -1 -1 -------- Run | Yrd Mat Min Exi Min Mat Gar Mat Gar Fac Gar Fac Low Low Dat Pro Fac Gar Fac Low Low Zio Dee Pro Fac Ext Cet Arc Hub Fac Upp Upp War Pro Res Tes Res Qua Frg Acc Com Total Allies 49 | . . . 2 4 . 4 . 6 . . . . . . . 3 1 . . . . . . 2 17 5 . . 1 . . . . . 1 . 1 1 1 . Largest Group 17 | . . . 2 5 5 4 4 6 6 . . . . . . 3 1 . . . . . . 1 17 17 17 14 1 . . . . . 1 1 1 1 2 2 Highest-Rated Group 944 | . . . 29 79 79 104 103 78 78 . . . . . . 87 85 . . . . . . 26 630 944 944 735 26 . . . . . 155 155 146 148 351 351 Highest-Rated Ally 219 | . . . 21 31 31 39 39 21 21 . . . . . . 29 85 . . . . . . 26 159 159 159 96 26 . . . . . 155 155 146 148 219 219 Initial Warlord ECA Mod 47 | . . . . . . . 13 13 22 22 36 36 36 36 35 35 35 47 47 47 47 47 46 46 46 46 46 46 45 45 45 45 44 44 44 43 43 43 42 42 Total Orders 131 | . . . . 4 . 1 . . 4 . . . . . . 2 9 8 . . . . 11 29 3 . . 15 11 . . . . 1 14 1 16 1 1 . STAY 21 | . . . . 1 . 1 . . 2 . . . . . . . 4 1 . . . . 2 4 . . . . . . . . . . 3 . 3 . . . ROAM 2 | . . . . . . . . . . . . . . . . . . . . . . . . . . . . 2 . . . . . . . . . . . . FOLLOW 26 | . . . . 1 . . . . 2 . . . . . . . 5 2 . . . . 2 6 . . . 2 . . . . . . 3 . 3 . . . EXPLORE 8 | . . . . . . . . . . . . . . . . 1 . 1 . . . . 2 2 . . . 2 . . . . . . . . . . . . RETURN 74 | . . . . 2 . . . . . . . . . . . 1 . 4 . . . . 5 17 3 . . 9 11 . . . . 1 8 1 10 1 1 . Ally Attacks 377 | . . . . 22 15 14 35 . 18 . . . . . . 14 10 . . . . . . . 51 26 22 75 . . . . . . 3 26 7 . 33 6 Total Damage 9938 | . . . . 174 100 212 483 . 138 . . . . . . 208 311 . . . . . . . 1064 432 352 1925 . . . . . . 389 1669 642 . 1204 635 Kills 62 | . . . . 3 1 5 5 . 1 . . . . . . 1 4 . . . . . . . 6 2 2 13 . . . . . . 1 5 4 1 8 . Allies Corrupted 5 | . . . . . . . . . . . . . . . . . . . . . . . . . . . . 3 . . . . . . . . 2 . . . Allies Melted . | . . . . . . . . . . . . . . . . . . . . . . . . . . . . . . . . . . . . . . . . . Intel | -11 -10 -10 -10 -9 -8 -8 -8 -8 -7 -7 -7 -7 -7 -7 -6 -6 -6 -6 -6 -6 -6 -6 -5 -5 -5 -5 -5 -5 -4 -4 -4 -4 -3 -3 -3 -2 -2 -2 -1 -1 ------- Run | Yrd Mat Min Exi Min Mat Gar Mat Gar Fac Gar Fac Low Low Dat Pro Fac Gar Fac Low Low Zio Dee Pro Fac Ext Cet Arc Hub Fac Upp Upp War Pro Res Tes Res Qua Frg Acc Com Active Infowar (turns) 38114 | 38 995 882 706 990 755 572 828 702 1797 1469 698 1655 1148 124 1151 1687 1913 943 1163 1084 469 298 . 1104 689 . . 391 2636 1083 741 871 1277 1088 1925 1203 1546 423 788 282 Optics 3 | . . . . . . . . . . . . . . . . . . . . . 1 . . . . . . . 2 . . . . . . . . . . . Sensors 7996 | . . . . . . . . . . . . . . . . . . . . . . . . . . . . . . . . 329 1226 921 1731 1203 1482 350 715 39 IFF 4555 | . . . . . . . . . . . . . . . . . . . . . . . . . . . . . 2203 1079 741 532 . . . . . . . . Terrain 28 | . . . . . . . . . . . . . . . . . 2 26 . . . . . . . . . . . . . . . . . . . . . . Traps 1 | . . . . . . . . . . . . 1 . . . . . . . . . . . . . . . . . . . . . . . . . . . . Seismic 16632 | 38 995 882 706 990 755 572 828 702 1751 1310 698 1654 1148 124 1151 1503 825 . . . . . . . . . . . . . . . . . . . . . . . T.N.C. 26 | . . . . . . . . . . . . . . . . . . . . . . . . . . . . . 26 . . . . . . . . . . . Machine Analysis 245 | . . . . . . . . . 245 . . . . . . . . . . . . . . . . . . . . . . . . . . . . . . . Cloaking 10272 | . . . . . . . . . . . . . . . . . . . 277 2 . . . . . . . . 621 1082 741 871 733 182 1547 1203 1546 423 788 256 Jamming 16195 | . . . . . . . . . 60 159 . . . . . 754 1702 943 886 1082 468 298 . 1104 689 . . 391 832 . . . . 752 1837 1203 1542 423 788 282 Robot Analysis Total 1 | . 1 . . . . . . . . . . . . . . . . . . . . . . . . . . . . . . . . . . . . . . . Derelict Logs Recovered 14 | . . 1 . 1 . . . . . . . 1 1 . 1 . . . 2 2 1 . . . . . . . . 2 2 . . . . . . . . . Drone Launches 96 | . . . . 2 . . . . . . . . . . . 1 . 6 . . . . 7 15 3 . . 27 11 . . . . 1 10 1 10 1 1 . Drone Recoveries 80 | . . . . 2 . . . . . . . . . . . 1 . 6 . . . . 4 16 3 . . 13 11 . . . . 1 10 1 10 1 1 . Exploration | -11 -10 -10 -10 -9 -8 -8 -8 -8 -7 -7 -7 -7 -7 -7 -6 -6 -6 -6 -6 -6 -6 -6 -5 -5 -5 -5 -5 -5 -4 -4 -4 -4 -3 -3 -3 -2 -2 -2 -1 -1 ------------- Run | Yrd Mat Min Exi Min Mat Gar Mat Gar Fac Gar Fac Low Low Dat Pro Fac Gar Fac Low Low Zio Dee Pro Fac Ext Cet Arc Hub Fac Upp Upp War Pro Res Tes Res Qua Frg Acc Com Turns Passed 49206 | 144 1009 882 706 1003 1177 1274 999 1430 1898 1898 833 1833 1148 124 1184 1841 2098 1163 1172 1175 1585 2551 1059 1316 1287 399 794 697 2817 1087 741 871 1657 1172 1940 1203 1546 423 788 282 Spaces Moved 28776 | 78 572 752 577 746 799 798 631 856 1115 934 435 1032 637 78 721 872 1051 650 853 802 1129 1370 421 689 667 120 44 383 1431 777 542 667 791 679 1083 953 1071 275 526 169 Core 9 | 9 . . . . . . . . . . . . . . . . . . . . . . . . . . . . . . . . . . . . . . . . Treads 952 | 69 460 . . . . . . . . . . . . . . . . 87 . . . 336 . . . . . . . . . . . . . . . . . . Legs 12034 | . . . . . . . . . . . . . . . . . 454 469 . . . 321 416 689 667 120 44 383 938 777 542 667 791 679 1083 953 1071 275 526 169 Wheels 15781 | . 112 752 577 746 799 798 631 856 1115 934 435 1032 637 78 721 872 597 94 853 802 1129 713 5 . . . . . 493 . . . . . . . . . . . Hover . | . . . . . . . . . . . . . . . . . . . . . . . . . . . . . . . . . . . . . . . . . Flight . | . . . . . . . . . . . . . . . . . . . . . . . . . . . . . . . . . . . . . . . . . Fastest Speed 50 | 50 105 105 105 120 95 95 101 115 115 145 160 160 160 160 160 150 107 110 120 135 135 120 185 120 120 123 123 120 122 121 125 125 125 120 118 107 113 113 108 108 Average Speed 132 | 151 149 105 117 120 103 107 110 115 145 159 160 160 160 160 160 153 132 133 126 135 135 150 185 142 122 123 123 121 133 124 125 125 128 122 127 110 113 113 108 108 Slowest Speed 250 | 160 160 105 120 135 140 110 115 115 160 160 160 160 160 160 160 175 177 250 135 135 135 240 230 185 168 123 123 123 176 125 125 125 179 130 130 130 113 113 113 108 Overloaded Moves . | . . . . . . . . . . . . . . . . . . . . . . . . . . . . . . . . . . . . . . . . . Propulsion Burnouts . | . . . . . . . . . . . . . . . . . . . . . . . . . . . . . . . . . . . . . . . . . Robots Hopped . | . . . . . . . . . . . . . . . . . . . . . . . . . . . . . . . . . . . . . . . . . Potential Cave-ins 8 | . . . . . . . . . . . . . . . . . . . . . . 2 . . . . . . . . . . . . 2 . 4 . . . Cave-ins Triggered . | . . . . . . . . . . . . . . . . . . . . . . . . . . . . . . . . . . . . . . . . . Exploration Rate (%) 65 | 4 95 99 92 98 78 84 59 89 35 82 16 92 73 68 84 29 84 17 90 92 86 79 80 27 78 62 71 55 48 90 65 92 90 21 94 38 94 13 21 10 Regions Visited 40 Branch Regions 24 Pre-discovered Areas 11 | . . . 1 1 . . . . . . . 1 . 1 . . . . 1 . 3 . . . . . . . . 1 . 2 . . . . . . . . Known Exits Taken 18 | . 1 . . . 1 . 1 . 1 . 1 . . . . 1 . 1 . . . . 1 1 . . . 1 1 . . . 1 1 1 1 1 1 1 . Unknown Exits Taken 18 | 1 . 1 1 1 . . . . . . . 1 1 1 1 . . . 1 1 1 1 . . 1 1 1 . . 1 1 1 . . . . . . . . Scrap Searched 29 | . . 1 . 2 . . . . . . . 4 4 . 3 . . . 4 3 2 . 1 . . . . . . 3 1 . 1 . . . . . . . Spaces Dug 229 | . 8 . . . 4 . 8 . 11 2 14 . 3 . 16 18 . 3 2 2 . 4 2 11 . . . 5 20 2 3 . 12 8 29 4 29 5 4 . Terrain Destroyed 1468 | . 8 6 . 6 41 81 36 85 24 154 16 41 4 . 16 62 40 25 6 51 . 11 66 38 33 1 2 182 243 42 6 . 27 32 35 6 32 5 5 . Melee 13 | . . . . . 4 . 5 . . . . . . . . . . . . . . . . 1 . . . 1 2 . . . . . . . . . . . Projectile 392 | . 8 . . . . . 4 . 24 4 16 6 4 . . 24 19 25 6 10 . 11 12 15 11 1 2 12 46 5 6 . 27 15 35 5 29 5 5 . AOE 1059 | . . 6 . 6 37 81 27 85 . 150 . 35 . . 16 38 21 . . 41 . . 54 22 22 . . 169 195 37 . . . 17 . . . . . . Terrain Rammed . | . . . . . . . . . . . . . . . . . . . . . . . . . . . . . . . . . . . . . . . . . Walls Destroyed . | . . . . . . . . . . . . . . . . . . . . . . . . . . . . . . . . . . . . . . . . . Machines Disabled . | . . . . . . . . . . . . . . . . . . . . . . . . . . . . . . . . . . . . . . . . . Actions | -11 -10 -10 -10 -9 -8 -8 -8 -8 -7 -7 -7 -7 -7 -7 -6 -6 -6 -6 -6 -6 -6 -6 -5 -5 -5 -5 -5 -5 -4 -4 -4 -4 -3 -3 -3 -2 -2 -2 -1 -1 --------- Run | Yrd Mat Min Exi Min Mat Gar Mat Gar Fac Gar Fac Low Low Dat Pro Fac Gar Fac Low Low Zio Dee Pro Fac Ext Cet Arc Hub Fac Upp Upp War Pro Res Tes Res Qua Frg Acc Com Total 37293 | 95 673 832 607 846 1056 1077 843 1160 1307 1211 524 1151 756 77 743 1210 1498 857 935 857 1185 1709 661 951 1068 353 772 529 2077 878 601 707 1374 944 1511 1073 1322 368 669 226 Wait 4802 | 2 21 71 6 79 130 65 80 47 50 64 35 60 113 . 12 156 171 77 62 23 31 174 216 167 308 209 716 55 341 71 58 6 511 137 206 27 101 60 60 24 Move 28739 | 77 571 751 576 745 799 797 631 855 1115 932 434 1031 636 77 720 872 1050 649 852 801 1128 1369 420 688 666 119 43 382 1431 776 541 666 790 678 1081 952 1070 274 525 169 Hop . | . . . . . . . . . . . . . . . . . . . . . . . . . . . . . . . . . . . . . . . . . Pick Up 285 | 5 15 . 8 4 22 15 13 8 20 15 3 4 . . . 12 11 13 2 2 3 8 . 5 2 . 1 4 16 3 . 5 1 25 19 8 7 3 2 1 Fast Attach 162 | 7 2 . . 1 2 4 2 5 4 7 1 3 . . . 9 8 20 2 1 6 13 . 4 1 4 . 1 15 . . 6 3 3 4 9 12 1 2 . Attach 97 | . 2 . . . 6 3 2 6 4 5 . 2 . . . 7 7 1 2 1 . 6 . . . . . 5 13 3 . 2 . 5 5 3 1 . 4 2 Detach 135 | . 2 . . 1 1 1 1 3 3 5 . 1 . . . 5 1 2 . . 4 5 . 6 1 6 4 4 29 9 . 7 9 9 5 5 4 . 2 . Swap 800 | 1 18 1 1 4 32 30 43 30 40 28 9 19 . . 7 54 40 41 4 7 4 32 3 26 15 4 . 27 65 2 . 5 16 32 65 12 42 12 24 5 Drop 357 | . 16 . 4 7 22 16 21 13 20 15 5 4 . . 1 16 16 20 2 3 5 25 . 11 3 2 1 3 14 1 . 10 5 14 24 17 17 2 1 1 Fire 1507 | 3 26 9 1 5 38 76 45 102 43 76 37 27 7 . 3 79 139 34 7 19 4 77 22 40 32 9 7 39 127 13 2 . 36 39 93 40 62 16 49 24 Melee 43 | . . . . . 4 9 5 . . . . . . . . . . . . . . . . 4 1 . . 8 10 . . . . . . . 2 . . . Ram . | . . . . . . . . . . . . . . . . . . . . . . . . . . . . . . . . . . . . . . . . . Kick 25 | . . . . . . . . . . . . . . . . . . . . . . . . . . . . 1 12 . . . . 2 6 . 4 . . . Crush . | . . . . . . . . . . . . . . . . . . . . . . . . . . . . . . . . . . . . . . . . . Escape Stasis 187 | . . . . . . 29 . 32 8 64 . . . . . . 53 . . . . . . . . . . . . . . . . . 1 . . . . . Rewire 143 | . . . 11 . . 32 . 59 . . . . . . . . 2 . . . . . . . 39 . . . . . . . . . . . . . . . Trap 11 | . . . . . . . . . . . . . . . . . . . 2 . . . . . . . . . 4 . . . 3 . 2 . . . . . Miscellaneous . | . . . . . . . . . . . . . . . . . . . . . . . . . . . . . . . . . . . . . . . . . Route ------- -11/Scrapyard -10/Materials (discovered 3 exits: [*Mat x2] / *Min) -10/Mines (discovered 3 exits: [*Mat x2] / *Exi) -10/Exiles (discovered 2 exits: *Min x2) -9/Mines (discovered 2 exits: *Mat x2) -8/Materials (discovered 4 exits: *Fac x3 / Gar) -8/Garrison (discovered 3 exits: *Mat x3) -8/Materials (discovered 3 exits: *Fac x2 / Gar) -8/Garrison (discovered 3 exits: *Fac x3) -7/Factory (discovered 3 exits: *Fac / *Low / Gar) -7/Garrison (discovered 3 exits: *Fac x3) -7/Factory (discovered 3 exits: *Fac / *Low x2) -7/Lower Caves -7/Lower Caves (discovered 2 exits: *Fac / *Dat) -7/Data Miner -6/Proximity Caves -6/Factory (discovered 5 exits: *Fac x2 / Low x2 / Gar) -6/Garrison (discovered 3 exits: *Fac x3) -6/Factory -6/Lower Caves -6/Lower Caves (discovered 2 exits: *Fac / [*Zio]) -6/Zion (discovered 2 exits: [*Dee] / [*Pro]) -6/Deep Caves -5/Proximity Caves -5/Factory (discovered 8 exits: Fac x4 / Upp x2 / *Ext x2) -5/Extension (discovered 3 exits: *Fac x2 / *Cet) -5/Cetus -5/Archives -5/Hub_04(d) (discovered 3 exits: *Fac x3) -4/Factory (discovered 6 exits: *Res x4 / *Upp x2) -4/Upper Caves -4/Upper Caves (discovered 2 exits: *Res / *War) -4/Warlord -3/Proximity Caves -3/Research (discovered 4 exits: Res / Arm / *Tes x2) -3/Testing -2/Research (discovered 2 exits: *Qua x2) -2/Quarantine (discovered 3 exits: *Acc / [*Sec] / *Frg) -2/Protoforge -1/Access -1/Command Free Derelict Territories History --------- Turn | Location | Event 8 | -11/Scrapyard | Discovered new exit (range 15) 145 | -11/Scrapyard | Entered Materials 334 | -10/Materials | Build established: Mutant 515 | -10/Materials | Discovered new exit (range 3) 878 | -10/Materials | Discovered new exit (range 12) 1042 | -10/Materials | Identified exit to Mines 1154 | -10/Materials | Entered Mines 1160 | -10/Mines | Met a Derelict bent on vengeance 1178 | -10/Mines | Discovered new exit (range 10) 1212 | -10/Mines | A weapon hastily lodged in a ceiling crevice suddenly fell to the ground 1718 | -10/Mines | Discovered new exit (range 14) 1807 | -10/Mines | Deemed a non-threat by the Exiles lab entrance 1808 | -10/Mines | Discovered new exit (range 5) 1887 | -10/Mines | Learned Materials security intel 2036 | -10/Mines | Entered Exiles 2036 | -10/Exiles | Found Exiles lab destroyed 2050 | -10/Exiles | Discovered new exit (range 15) 2364 | -10/Exiles | Learned location of Zion (-6) 2423 | -10/Exiles | Discovered new exit (range 14) 2614 | -10/Exiles | Opened EX-Vault 2619 | -10/Exiles | Found Cloak of Protection 2742 | -10/Exiles | Entered Mines 2742 | -9/Mines | Accompanied by 2 allies 2808 | -9/Mines | Found the Drone Emporium 2815 | -9/Mines | Found Prototype Device 2815 | -9/Mines | Identified Sensor Drone Bay 2932 | -9/Mines | Learned location of Storage (-9) 2964 | -9/Mines | Assembled infested the area 2969 | -9/Mines | Assisted by a Guerilla fighting off Assembled 3096 | -9/Mines | Discovered new exit (range 7) 3322 | -9/Mines | Assisted by bots powering up and referring to "LRC-V3" 3412 | -9/Mines | Discovered new exit (range 10) 3482 | -9/Mines | Received a Mining Laser from a helpful Derelict 3623 | -9/Mines | Build established: Commander-Mutant 3647 | -9/Mines | Joined a pair of Derelicts in attacking an 0b10 outpost 3745 | -9/Mines | Entered Materials 3745 | -8/Materials | Accompanied by 5 allies 3745 | -8/Materials | Evolved 4 slots: Propulsion x2, Utility x1, Weapon x1 3823 | -8/Materials | Lost 3 allies 4008 | -8/Materials | Discovered new exit (range 14) 4261 | -8/Materials | Build established: Tank 4503 | -8/Materials | Discovered new exit (range 7) 4694 | -8/Materials | Discovered new exit (range 3) 4922 | -8/Materials | Identified exit to Garrison 4922 | -8/Materials | Entered Garrison 4968 | -8/Garrison | Triggered checkpoint 5072 | -8/Garrison | Spotted B-75 Beast 5200 | -8/Garrison | Garrison Relay disabled 5248 | -8/Garrison | Triggered checkpoint 5284 | -8/Garrison | Triggered checkpoint 5372 | -8/Garrison | Destroyed 8 combat bots 5376 | -8/Garrison | Triggered checkpoint 5470 | -8/Garrison | Discovered new exit (range 13) 5507 | -8/Garrison | Triggered checkpoint 5526 | -8/Garrison | Garrison Relay disabled 5666 | -8/Garrison | Triggered checkpoint 5703 | -8/Garrison | Garrison Relay disabled 5774 | -8/Garrison | Rescued a captive Derelict 5776 | -8/Garrison | Rescued a captive Derelict 5832 | -8/Garrison | Discovered new exit (range 8) 5964 | -8/Garrison | Triggered checkpoint 6044 | -8/Garrison | Triggered checkpoint 6077 | -8/Garrison | Garrison Relay disabled 6125 | -8/Garrison | Discovered new exit (range 8) 6145 | -8/Garrison | Garrison Relay disabled 6147 | -8/Garrison | Garrison Relay disabled 6193 | -8/Garrison | Phase Generator disabled 6196 | -8/Garrison | Entered Materials 6196 | -8/Materials | Accompanied by 4 allies 6294 | -8/Materials | Build established: Scavenger-Tank 6580 | -8/Materials | Discovered new exit (range 16) 6596 | -8/Materials | First assault squad dispatched 6743 | -8/Materials | Build established: Scavenger-Gunner 7026 | -8/Materials | Discovered new exit (range 3) 7090 | -8/Materials | Garrison activated, responded to threat 7195 | -8/Materials | Identified exit to Garrison 7195 | -8/Materials | Entered Garrison 7223 | -8/Garrison | Triggered checkpoint 7278 | -8/Garrison | Garrison Relay disabled 7318 | -8/Garrison | Triggered checkpoint 7448 | -8/Garrison | Discovered new exit (range 8) 7455 | -8/Garrison | Triggered checkpoint 7487 | -8/Garrison | Core integrity fell below 50% 7581 | -8/Garrison | Garrison Relay disabled 7667 | -8/Garrison | Garrison Relay disabled 7702 | -8/Garrison | Triggered checkpoint 7753 | -8/Garrison | Phase Generator disabled 7804 | -8/Garrison | Discovered new exit (range 10) 8069 | -8/Garrison | Triggered checkpoint 8167 | -8/Garrison | Garrison Relay disabled 8171 | -8/Garrison | Triggered checkpoint 8203 | -8/Garrison | Triggered checkpoint 8255 | -8/Garrison | Garrison Relay disabled 8280 | -8/Garrison | Discovered new exit (range 15) 8284 | -8/Garrison | Triggered checkpoint 8625 | -8/Garrison | Entered Factory 8625 | -7/Factory | Accompanied by 6 allies 8625 | -7/Factory | Evolved 2 slots: Utility x2 8728 | -7/Factory | Lost 4 allies 9010 | -7/Factory | Central database locked down 9025 | -7/Factory | First assault squad dispatched 9492 | -7/Factory | Build established: Gunner 9625 | -7/Factory | Discovered new exit (range 9) 9957 | -7/Factory | Discovered new exit (range 15) 10523 | -7/Factory | Identified exit to Garrison 10523 | -7/Factory | Entered Garrison 10577 | -7/Garrison | Triggered checkpoint 10611 | -7/Garrison | Garrison Relay disabled 10625 | -7/Garrison | Garrison Relay disabled 10800 | -7/Garrison | Triggered checkpoint 10861 | -7/Garrison | Destroyed 7 combat bots 11055 | -7/Garrison | Triggered checkpoint 11102 | -7/Garrison | Garrison Relay disabled 11209 | -7/Garrison | Discovered new exit (range 8) 11342 | -7/Garrison | Phase Generator disabled 11462 | -7/Garrison | Triggered checkpoint 11563 | -7/Garrison | Triggered checkpoint 11588 | -7/Garrison | Garrison Relay disabled 11745 | -7/Garrison | Discovered new exit (range 15) 11821 | -7/Garrison | Triggered checkpoint 11879 | -7/Garrison | Heavy support dispatched to Factory 11900 | -7/Garrison | Discovered new exit (range 10) 12001 | -7/Garrison | Triggered checkpoint 12052 | -7/Garrison | Garrison Relay disabled 12093 | -7/Garrison | Heavy support dispatched to Factory 12182 | -7/Garrison | H-XX Assembler disabled 12306 | -7/Garrison | Attempted to access garrison exit controls, blocked by remote lockdown 12421 | -7/Garrison | Entered Factory 12560 | -7/Factory | Discovered new exit (range 4) 12591 | -7/Factory | Identified exit to Lower Caves 12858 | -7/Factory | Repaired Broken Plasma Cannon 12859 | -7/Factory | Fabricated Lrn. Proton Cannon? 13221 | -7/Factory | First assault squad dispatched 13254 | -7/Factory | Entered Lower Caves 13267 | -7/Lower Caves | Core integrity fell below 50% 13289 | -7/Lower Caves | Met a Warlord Commander 13290 | -7/Lower Caves | Learned location of Warlord (-4) 13291 | -7/Lower Caves | Warlord Commander delivered Encrypted Comm Array 13294 | -7/Lower Caves | Found Encrypted Comm Array 13659 | -7/Lower Caves | Learned 8 Factory zone layouts 14273 | -7/Lower Caves | Spotted B-75 Beast 14525 | -7/Lower Caves | Discovered new exit (range 13) 15087 | -7/Lower Caves | Entered another Lower Caves area 15121 | -7/Lower Caves | Discovered new exit (range 9) 15709 | -7/Lower Caves | Learned 4 Factory zone layouts 15749 | -7/Lower Caves | Spotted B-75 Beast 16019 | -7/Lower Caves | Discovered new exit (range 4) 16235 | -7/Lower Caves | Entered Data Miner 16235 | -7/Data Miner | Discovered new exit (range 6) 16266 | -7/Data Miner | Met Data Miner 16295 | -7/Data Miner | Learned location of Section 7 (-2) 16295 | -7/Data Miner | Acquired the access code to Warlord's prototype stash 16322 | -7/Data Miner | Received God Mode back door access code from Data Miner 16359 | -7/Data Miner | Entered Proximity Caves 16539 | -6/Proximity Caves | Learned Factory stockpile data 17352 | -6/Proximity Caves | Discovered new exit (range 11) 17399 | -6/Proximity Caves | Attracted the attention of an 0b10 checkpoint 17543 | -6/Proximity Caves | Entered Factory 17543 | -6/Factory | Evolved 2 slots: Power x1, Propulsion x1 17544 | -6/Factory | Identified exit to Factory 17544 | -6/Factory | Identified exit to Lower Caves 18817 | -6/Factory | Watched by a mysterious "MATRIX" hacker. 18893 | -6/Factory | Fabricated G-50 Soldier (x3) 18924 | -6/Factory | Discovered exit to Factory (range 7) 19005 | -6/Factory | Lost 3 allies 19384 | -6/Factory | Identified exit to Garrison 19384 | -6/Factory | Entered Garrison 19487 | -6/Garrison | Triggered checkpoint 19524 | -6/Garrison | Garrison Relay disabled 19568 | -6/Garrison | Triggered checkpoint 19667 | -6/Garrison | Triggered checkpoint 19853 | -6/Garrison | Spotted B-86 Titan 20051 | -6/Garrison | Destroyed B-86 Titan 20070 | -6/Garrison | Rewired B-75 Beast 20163 | -6/Garrison | Build established: Tank 20243 | -6/Garrison | Triggered checkpoint 20280 | -6/Garrison | Triggered checkpoint 20546 | -6/Garrison | Build established: Gunner 20548 | -6/Garrison | Discovered new exit (range 15) 20669 | -6/Garrison | Triggered checkpoint 20835 | -6/Garrison | Garrison Relay disabled 20863 | -6/Garrison | Garrison Relay disabled 21071 | -6/Garrison | Discovered new exit (range 5) 21090 | -6/Garrison | Spotted Striker 21111 | -6/Garrison | Triggered checkpoint 21173 | -6/Garrison | Garrison Relay disabled 21188 | -6/Garrison | Garrison Relay disabled 21372 | -6/Garrison | Garrison Relay disabled 21374 | -6/Garrison | Triggered checkpoint 21442 | -6/Garrison | Garrison Relay disabled 21446 | -6/Garrison | Build established: Scavenger-Gunner 21467 | -6/Garrison | Discovered new exit (range 8) 21482 | -6/Garrison | Entered Factory 21832 | -6/Factory | First assault squad dispatched 21993 | -6/Factory | Incoming assault squad redirected 22255 | -6/Factory | Discovered exit to Lower Caves (range 5) 22645 | -6/Factory | Entered Lower Caves 22769 | -6/Lower Caves | Spotted B-75 Beast 23102 | -6/Lower Caves | Encountered a Warlord checkpoint 23283 | -6/Lower Caves | Learned Factory garrison access intel 23520 | -6/Lower Caves | Attracted the attention of an 0b10 checkpoint 23566 | -6/Lower Caves | Discovered new exit (range 14) 23817 | -6/Lower Caves | Entered another Lower Caves area 23846 | -6/Lower Caves | Discovered exit to Factory (range 5) 24070 | -6/Lower Caves | Learned Factory emergency access door positions 24231 | -6/Lower Caves | Learned Factory security intel 24286 | -6/Lower Caves | Attracted the attention of an 0b10 outpost 24592 | -6/Lower Caves | Encountered a Warlord checkpoint 24883 | -6/Lower Caves | Discovered new exit (range 8) 24992 | -6/Lower Caves | Entered Zion 25101 | -6/Zion | Discovered new exit (range 14) 25563 | -6/Zion | Learned Factory stockpile data 25665 | -6/Zion | Met Imprinter 25761 | -6/Zion | Learned location of Quarantine (-2) 25784 | -6/Zion | Given the Hacking Drone Bay 25784 | -6/Zion | Found Prototype Device 25784 | -6/Zion | Identified Hacking Drone Bay 25815 | -6/Zion | Found CR-A16's Pointy Stick 26109 | -6/Zion | Found Prototype Processor 26109 | -6/Zion | Identified Exp. Targeting Computer 26117 | -6/Zion | Found Prototype Processor 26117 | -6/Zion | Identified Exp. Signal Interpreter 26125 | -6/Zion | Found Prototype Processor 26125 | -6/Zion | Identified Exp. Terrain Scan Processor 26143 | -6/Zion | Found Exp. Signal Interpreter 26287 | -6/Zion | Discovered new exit (range 3) 26287 | -6/Zion | Saw the warning signs outside the Deep Caves entrance 26577 | -6/Zion | Entered Deep Caves 26579 | -6/Deep Caves | Met 5H-AD0 26840 | -6/Deep Caves | Z-Facility disabled 26849 | -6/Deep Caves | Attacked by Z-Imprinter 27065 | -6/Deep Caves | Found Prototype Protection 27065 | -6/Deep Caves | Identified Zio. Weapon Casing 27146 | -6/Deep Caves | Thanked by 5H-AD0 27213 | -6/Deep Caves | Found Zio. Weapon Casing 27426 | -6/Deep Caves | Discovered new exit (range 6) 27563 | -6/Deep Caves | Spotted Golem 27589 | -6/Deep Caves | Core integrity fell below 50% 27594 | -6/Deep Caves | Destroyed Golem 27619 | -6/Deep Caves | Lost 4 parts (3n1w) 27754 | -6/Deep Caves | Found Zio. Weapon Casing 27855 | -6/Deep Caves | Build established: Scavenger-Mutant 28068 | -6/Deep Caves | Spotted Golem 28142 | -6/Deep Caves | Destroyed Golem 28200 | -6/Deep Caves | Triggered Deep Caves wall 28200 | -6/Deep Caves | Spotted Assembler 28200 | -6/Deep Caves | Spotted Assembler 28200 | -6/Deep Caves | Destroyed Assembler 28200 | -6/Deep Caves | Exposed GOLEM chamber 28214 | -6/Deep Caves | Destroyed Assembler 28235 | -6/Deep Caves | Destroyed 36 combat bots 28243 | -6/Deep Caves | Lost 3 parts (1p2u) 28261 | -6/Deep Caves | Found GOLEM Unit 28364 | -6/Deep Caves | Found GOLEM Unit 28433 | -6/Deep Caves | Found GOLEM Unit 28523 | -6/Deep Caves | Found Potential Leg 28525 | -6/Deep Caves | Destroyed 9 combat bots 28883 | -6/Deep Caves | Build established: Golem 29035 | -6/Deep Caves | Spotted Golem 29082 | -6/Deep Caves | Spotted Golem 29128 | -6/Deep Caves | Entered Proximity Caves 29265 | -5/Proximity Caves | Spotter reported a threat 29300 | -5/Proximity Caves | Spotter reported a threat 29355 | -5/Proximity Caves | Attracted the attention of an 0b10 checkpoint 29421 | -5/Proximity Caves | Core integrity fell below 20% 29979 | -5/Proximity Caves | Discovered exit to Factory (range 11) 30187 | -5/Proximity Caves | Entered Factory 30187 | -5/Factory | Accompanied by 1 ally 30187 | -5/Factory | Evolved 2 slots: Utility x2 30191 | -5/Factory | Loaded intel: 4 garrison access locations 30618 | -5/Factory | Destroyed 9 combat bots 31145 | -5/Factory | Identified exit to Upper Caves 31145 | -5/Factory | Identified exit to Extension 31205 | -5/Factory | Identified exit to Factory 31503 | -5/Factory | Entered Extension 31556 | -5/Extension | Rescued A7 31625 | -5/Extension | Rescued a captive Derelict 31625 | -5/Extension | Rescued a captive Derelict 31773 | -5/Extension | Rescued a captive Derelict 31775 | -5/Extension | Rescued a captive Derelict 32213 | -5/Extension | Spotted B-75 Beast 32221 | -5/Extension | Allies destroyed B-75 Beast 32240 | -5/Extension | Spotted B-75 Beast 32248 | -5/Extension | Destroyed B-75 Beast 32356 | -5/Extension | Rescued a captive Derelict 32404 | -5/Extension | Rescued a captive Derelict 32405 | -5/Extension | Rescued a captive Derelict 32429 | -5/Extension | Rescued a captive Derelict 32519 | -5/Extension | Destroyed 7 combat bots 32579 | -5/Extension | Rescued a captive Derelict 32580 | -5/Extension | Rescued a captive Derelict 32640 | -5/Extension | Discovered new exit (range 6) 32790 | -5/Extension | Entered Cetus 32790 | -5/Cetus | Accompanied by 17 allies (A7) 32795 | -5/Cetus | Acquired a Cetus Manufacturing Module code from A7 32806 | -5/Cetus | Spotted Cetus Guard 32806 | -5/Cetus | Spotted Cetus Guard 32810 | -5/Cetus | Spotted Cetus Guard 32811 | -5/Cetus | Spotted Cetus Guard 32812 | -5/Cetus | Destroyed Cetus Guard 32818 | -5/Cetus | Destroyed Cetus Guard 32819 | -5/Cetus | Build established: Commander-Golem 32829 | -5/Cetus | Allies destroyed Cetus Guard 32830 | -5/Cetus | Destroyed Cetus Guard 32860 | -5/Cetus | Lost 5 allies 32943 | -5/Cetus | Started Cetus Manufacturing Module 32968 | -5/Cetus | Manufactured an Enhanced Grunt 32993 | -5/Cetus | Manufactured an Enhanced Grunt 33018 | -5/Cetus | Manufactured an Enhanced Grunt 33043 | -5/Cetus | Manufactured an Enhanced Grunt 33063 | -5/Cetus | Escorted A7 to Cetus Mainframe 33068 | -5/Cetus | Manufactured an Enhanced Grunt 33107 | -5/Cetus | Discovered new exit (range 16) 33189 | -5/Cetus | Entered Archives 33189 | -5/Archives | Accompanied by 17 allies (A7) 33194 | -5/Archives | Received a hacking code to weaken MAIN.C 33245 | -5/Archives | Discovered new exit (range 16) 33983 | -5/Archives | Entered Hub_04(d) 33983 | -5/Hub_04(d) | Accompanied by 14 allies 34069 | -5/Hub_04(d) | Discovered exit to Factory (range 6) 34082 | -5/Hub_04(d) | Lost 4 allies 34203 | -5/Hub_04(d) | Discovered exit to Factory (range 13) 34271 | -5/Hub_04(d) | Garrison activated, responded to threat 34283 | -5/Hub_04(d) | Found Prototype Device 34316 | -5/Hub_04(d) | Lost 7 allies 34338 | -5/Hub_04(d) | Spotted B-75 Beast 34403 | -5/Hub_04(d) | Garrison activated, responded to threat 34416 | -5/Hub_04(d) | Destroyed B-75 Beast 34489 | -5/Hub_04(d) | Identified Exp. Thermal Shield 34509 | -5/Hub_04(d) | Discovered exit to Factory (range 26) 34555 | -5/Hub_04(d) | Build established: Golem 34583 | -5/Hub_04(d) | First assault squad dispatched 34585 | -5/Hub_04(d) | Network Hub disabled 34639 | -5/Hub_04(d) | Spotted Lightning 34642 | -5/Hub_04(d) | Spotted Lightning 34643 | -5/Hub_04(d) | Spotted Lightning 34651 | -5/Hub_04(d) | Network Hub disabled 34680 | -5/Hub_04(d) | Entered Factory 34680 | -4/Factory | Evolved 2 slots: Propulsion x1, Utility x1 34682 | -4/Factory | Lost 13 allies 34881 | -4/Factory | Spotted B-86 Titan 34930 | -4/Factory | First assault squad dispatched 34946 | -4/Factory | Incoming assault squad redirected 34972 | -4/Factory | Destroyed B-86 Titan 35003 | -4/Factory | Build established: Scavenger-Golem 35326 | -4/Factory | Build established: Golem 35455 | -4/Factory | Destroyed 7 combat bots 35637 | -4/Factory | Lost 5 parts (2n3u) 36103 | -4/Factory | Repaired Imp. Proton Missile Launcher 36139 | -4/Factory | Repaired Cld. Particle Cannon 36349 | -4/Factory | Identified exit to Upper Caves 36350 | -4/Factory | Identified exit to Research 36508 | -4/Factory | Repaired Adv. Particle Charger 36810 | -4/Factory | Cargo convoy interrupted 36897 | -4/Factory | Destroyed 9 combat bots 37497 | -4/Factory | Entered Upper Caves 37522 | -4/Upper Caves | Learned location of Testing (-3) 37660 | -4/Upper Caves | Learned location of 1 exit from Research 37924 | -4/Upper Caves | Found Alien Artifact 38423 | -4/Upper Caves | Discovered new exit (range 16) 38584 | -4/Upper Caves | Entered another Upper Caves area 38588 | -4/Upper Caves | Discovered exit to Research (range 15) 39170 | -4/Upper Caves | Encountered a Warlord checkpoint 39259 | -4/Upper Caves | Discovered new exit (range 11) 39261 | -4/Upper Caves | Learned location of 1 exit from Research 39263 | -4/Upper Caves | Spotted B-86 Titan 39306 | -4/Upper Caves | Learned location of 1 exit from Research 39325 | -4/Upper Caves | Entered Warlord 39392 | -4/Warlord | System corruption cleaned by Quarantine Array 39620 | -4/Warlord | Found Prototype Device 39620 | -4/Warlord | Identified Minesniffer Drone Bay 39753 | -4/Warlord | Learned location of Armory (-3) 39754 | -4/Warlord | Learned 4 Armory zone layouts 39756 | -4/Warlord | Learned Armory terminal intel 39756 | -4/Warlord | Learned Armory repair station intel 39756 | -4/Warlord | Learned Armory recycling unit intel 39844 | -4/Warlord | Visited the Vortex Lab 39849 | -4/Warlord | Found Prototype Energy Gun 39849 | -4/Warlord | Identified Vortex Rifle 39856 | -4/Warlord | Found Prototype Energy Cannon 39856 | -4/Warlord | Identified Vortex Driver 39859 | -4/Warlord | Warlord's base attacked by MAIN.C 39861 | -4/Warlord | Found Vortex Driver 39997 | -4/Warlord | Met Warlord 40002 | -4/Warlord | Opened Warlord's prototype stash 40005 | -4/Warlord | Found Prototype Reactor 40029 | -4/Warlord | Found Prototype Processor 40029 | -4/Warlord | Identified Exp. Target Analyzer 40148 | -4/Warlord | Build established: Mutant 40158 | -4/Warlord | Opened side exit 40180 | -4/Warlord | Spotted Striker 40182 | -4/Warlord | Discovered new exit (range 9) 40196 | -4/Warlord | Entered Proximity Caves 40265 | -3/Proximity Caves | Attracted the attention of an 0b10 checkpoint 40285 | -3/Proximity Caves | Attracted the attention of an 0b10 outpost 40500 | -3/Proximity Caves | Build established: Golem 41423 | -3/Proximity Caves | Received a Behemoth hack from an annoying Tinkerer 41469 | -3/Proximity Caves | Build established: Scavenger-Golem 41543 | -3/Proximity Caves | Discovered exit to Research (range 11) 41853 | -3/Proximity Caves | Entered Research 41853 | -3/Research | Evolved 2 slots: Utility x2 41854 | -3/Research | Identified exit to Testing 41855 | -3/Research | Identified exit to Research 41855 | -3/Research | Identified exit to Armory 42066 | -3/Research | Central database locked down 42623 | -3/Research | Found Gamma Bomb Array 42827 | -3/Research | Found Fusion Bomb Launcher 42872 | -3/Research | Cargo convoy interrupted 43015 | -3/Research | Build established: Infiltrator-Golem 43025 | -3/Research | Entered Testing 43035 | -3/Testing | Identified Vortex Chain Reactor 43193 | -3/Testing | Found Prototype Energy Cannon 43274 | -3/Testing | Found Prototype Launcher 43286 | -3/Testing | Identified Imp. Potential Cannon 43308 | -3/Testing | Identified Hellfire Missile Launcher 43530 | -3/Testing | Found Prototype Leg 43530 | -3/Testing | Identified Myomer Exoskeleton 43602 | -3/Testing | Found Prototype Processor 43609 | -3/Testing | Identified Spectral Analyzer 43683 | -3/Testing | Spotted Striker 43825 | -3/Testing | Found Prototype Energy Cannon 43826 | -3/Testing | Identified Hpw. Disruptor Cannon 43869 | -3/Testing | Build established: Scavenger-Skirmisher 43914 | -3/Testing | Found Prototype Launcher 43937 | -3/Testing | Identified Com. Tesla Bomb Launcher 44021 | -3/Testing | Found Prototype Ballistic Gun 44021 | -3/Testing | Identified Hyp. Multirail 44205 | -3/Testing | Found Exp. Target Analyzer 44517 | -3/Testing | Rewired PX-I5Q5PKKA27 44965 | -3/Testing | Entered Research 44965 | -2/Research | Accompanied by 1 ally 44965 | -2/Research | Warlord forces began assault on 0b10 44965 | -2/Research | Evolved 2 slots: Power x1, Utility x1 44966 | -2/Research | Identified exit to Quarantine 44990 | -2/Research | Distinguished unit "Knights of the Pentagonal Table" dispatched to help 44990 | -2/Research | Distinguished unit "Golden Rifle" dispatched to help 45075 | -2/Research | Research machine network offline 45084 | -2/Research | Met up with Warlord 45394 | -2/Research | Borebot progress halted 45564 | -2/Research | Build established: Infiltrator-Tank 45568 | -2/Research | Destroyed Executioner 45571 | -2/Research | Spotted Striker 45587 | -2/Research | Found Prototype Processor 45587 | -2/Research | Identified Exp. Core Analyzer 45612 | -2/Research | Lost 7 allies 45617 | -2/Research | Found Prototype Device 45624 | -2/Research | Identified Exp. Shield Generator 45679 | -2/Research | Borebot progress halted 45720 | -2/Research | Spotted Executioner 45737 | -2/Research | Allies destroyed Executioner 45785 | -2/Research | Lost 10 allies 46026 | -2/Research | Found Prototype Launcher 46030 | -2/Research | Warlord invited to help at Command 46030 | -2/Research | Given Cave Seal Controls access code 46033 | -2/Research | Identified Tesla Bomb Launcher 46168 | -2/Research | Entered Quarantine 46168 | -2/Quarantine | Accompanied by 1 ally 46233 | -2/Quarantine | Found Alien Artifact 46299 | -2/Quarantine | Lost 6 allies 46383 | -2/Quarantine | Build established: Scavenger-Tank 46395 | -2/Quarantine | Garrison activated, responded to threat 46465 | -2/Quarantine | Identified exit to Access 46523 | -2/Quarantine | Found Alien Energy Cannon 46523 | -2/Quarantine | Identified Core Cannon 46664 | -2/Quarantine | Found Alien Artifact 46664 | -2/Quarantine | Identified Phase Redirector 47133 | -2/Quarantine | Build established: Infiltrator-Tank 47501 | -2/Quarantine | Found Alien Impact Weapon 47501 | -2/Quarantine | Identified Core Stripper 47545 | -2/Quarantine | Spotted Fortress 47552 | -2/Quarantine | Destroyed Fortress 47567 | -2/Quarantine | Found Prototype Device 47567 | -2/Quarantine | Identified Thermal Barrier 47572 | -2/Quarantine | Found Prototype Device 47572 | -2/Quarantine | Identified Exp. Force Field 47578 | -2/Quarantine | Found Prototype Device 47578 | -2/Quarantine | Identified Exp. EM Shield 47707 | -2/Quarantine | Discovered new exit (range 6) 47707 | -2/Quarantine | Discovered new exit (range 6) 47712 | -2/Quarantine | Identified exit to Protoforge 47714 | -2/Quarantine | Entered Protoforge 47779 | -2/Protoforge | Superfortress began startup sequence 47856 | -2/Protoforge | Build established: Infiltrator-Gunner 47880 | -2/Protoforge | Discovered exit to Access (range 6) 47899 | -2/Protoforge | Spotted B-90 Cyclops 47900 | -2/Protoforge | Befriended a Behemoth using the annoying Tinkerer's hack 47962 | -2/Protoforge | Found Prototype Storage 47962 | -2/Protoforge | Identified Cep. Chromion Battery 47966 | -2/Protoforge | Found Cep. Chromion Battery 47989 | -2/Protoforge | Found Prototype Device 47989 | -2/Protoforge | Identified Cep. Recoil Nullifier 48137 | -2/Protoforge | Entered Access 48137 | -1/Access | Accompanied by 1 ally 48137 | -1/Access | Evolved 2 slots: Utility x2 48156 | -1/Access | Identified Subatomic Replicator 48156 | -1/Access | Used Subatomic Replicator to replicate Hyp. Multirail 48257 | -1/Access | Identified exit to Command 48306 | -1/Access | Garrison activated, responded to threat 48395 | -1/Access | Found Hellfire Missile Launcher 48865 | -1/Access | Spotted B-99 Colossus 48866 | -1/Access | Befriended a Behemoth using the annoying Tinkerer's hack 48869 | -1/Access | Spotted B-99 Colossus 48884 | -1/Access | Allies destroyed B-99 Colossus 48925 | -1/Access | Entered Command 48925 | -1/Command | Accompanied by 2 allies 48941 | -1/Command | Disengaged cave seal 48941 | -1/Command | Derelicts emerged from the dark tunnel 48941 | -1/Command | Welcomed Warlord to Command 49056 | -1/Command | Disengaged cave seal 49069 | -1/Command | Lost 4 allies 49095 | -1/Command | Warlord commented on Warlord statues 49100 | -1/Command | Spotted Combat Programmer 49102 | -1/Command | Spotted Combat Programmer 49102 | -1/Command | Spotted M Guard 49106 | -1/Command | Spotted M Guard 49116 | -1/Command | Combat Programmer assimilated allied 4E-GUB(L) 49116 | -1/Command | Spotted 4E-GUB(L) 49122 | -1/Command | All MAIN.C guards destroyed 49153 | -1/Command | Lost 11 allies 49163 | -1/Command | Met MAIN.C 49163 | -1/Command | Hacked MAIN.C using A7's code 49174 | -1/Command | System corruption reached 10% 49193 | -1/Command | 0b10 Conduit disabled 49196 | -1/Command | MAIN.C activated Command garrisons 49207 | *** | Establishing Free Derelict Territories! Last Messages --------------- 49201_ HV Slug penetrates 0b10 Conduit. 49201_ XF-ESB(L) sneak attacks. 49201_ MAIN.C reaction time slowed by virus. 49202_ XF-ESB(L) sneak attacks. 49202_ XF-ESB(L) knocked back. 49204_ HV Slug penetrates MAIN.C. 49204_ HV Slug penetrates 0b10 Conduit. 49204_ HV Slug penetrates MAIN.C. 49204_ MAIN.C suffers critical hit (Destroy). 49204_ Destroyed Prototype Ballistic Gun. 49204_ HV Slug penetrates 0b10 Conduit. 49205_ MAIN.C: "I hope you know you're still going to DIE HERE WITH ME!" 49205_ MAIN.C destroyed. ZY-L1N: Victory! Sure there's still lots to do, but without MAIN.C at the helm 0b10 doesn't stand a chance. We've got this... [Achievement: Warlord Forever!] Map ----- +----------------------------------------------------+ | ?????????????????????????????????????????????????? | | ?????????????????????????????????????????????????? | | ?????????????????????????????????????????????????? | | ?????????????????????????????????????????????????? | | ?????????????????????????????????????????????????? | | ?????????????????????????????????????????????????? | | ?????????????????????????????????????????????????? | | ?????????????????????????????????????????????????? | | ?????????????????????????????????????????????????? | | ?????????????????????????????????????????????????? | | ?????????????????????????????????????????????????? | | ?????????????????????????????????????????????????? | | ?????????????????????????????????????????????????? | | ?????????????????????????????????????????????????? | | ?????????????????????????????????????????????????? | | ?????????????????????????????????????????????????? | | ?????????????????????????????????????????????????? | | ?????????????????????????????????????????????????? | | ?????????????????????????????????????????????????? | | ?????????????????????????????????????????????????? | | ?????????????????????????????????????????????????? | | ?????????????????????????????????????????????????? | | ?????????????????????????????????????????????????? | | ????????????????#############????????????????????? | | ?????????????? """" #????????????????????? | | ?????????????? "" @ #????????????????????? | | ?????????????? "" ###################### | | ???????????????""" W ; | | ???????????????""" p mhBB | | ???????????????"" / | | ??????????????" L % ################### | | ?????????????"""" #?????????????????# | | ?????????????? "" % #?????????????????# | | ??????????????? K% ""#?????????????????# | | ?????????????? " $% "" """#?????????????????# | | ??????????????? % """""""""#?????????????????# | | ?????????????? """"""""""??????????????????# | | ???????????????? "????? ?????????????????????# | | ??????????????????????????????????????????????# | | ??????????????????????????????????????????????# | | ??????????????????????????????????????????????# | | ??????????????????????????????????????????????#### | | ?????????????????????????????????????????????????? | | ?????????????????????????????????????????????????? | | ?????????????????????????????????????????????????? | | ?????????????????????????????????????????????????? | | ?????????????????????????????????????????????????? | | ?????????????????????????????????????????????????? | | ?????????????????????????????????????????????????? | | ?????????????????????????????????????????????????? | +----------------------------------------------------+ Best States ------------- Heat Dissipation 91 Coolant Potential 80 Energy Generation 79 Energy Capacity 3000 Matter Stores 300 Matter Capacity 600 Sight Range 16 Robot Scan Range 18 Terrain Scan Range 24 Terrain Scan Density 10 Jamming Range 16 Cloak Strength 5 Power Amplification 40 Additional Mass Support 20 Armor Coverage 600 Resistance: KI 20 Resistance: TH 50 Resistance: EX 15 Resistance: EM 75 Resistance: I 15 Resistance: S 15 Resistance: P 15 Core Shielding 30 Power Shielding 66 Weapon Shielding 100 Phase Shifting 10 Evasion (%) 84 Targeting Accuracy 28 Target Analysis 10 Core Analysis 8 Armor Integrity Analysis 40 Recoil Reduction 99 Matter Filtering 50 Energy Filtering 50 Particle Charging 25 Offensive Hacking 10 Defensive Hacking 11 Trap Extractor Capacity 8 Item Schematics ----------------- Combat Drone Bay | -7/Data Miner | Free Lgt. Regenerative Plating | -7/Data Miner | Free Biomechanical Wings | -7/Data Miner | Free Thermal Defense Suite | -7/Data Miner | Free Force Rifle | -7/Data Miner | Free Linear Gravjet | -7/Data Miner | Free Imp. Thermal Shield | -7/Data Miner | Free Hvy. Phase Cannon | -7/Data Miner | Free Mic. Fission Core | -7/Data Miner | Free Adv. System Restoration Module | -7/Data Miner | Free Imp. Fusion Compressor | -7/Data Miner | Free Robot Schematics ------------------ Y-54 Guardian | -7/Factory | Hacked M-22 Extractor | -7/Data Miner | Free L-41 Fighter | -7/Data Miner | Free O-24 Administrator | -7/Data Miner | Free A-15 Conveyor | -7/Data Miner | Free G-50 Soldier | -7/Data Miner | Free Y-64 Sentinel | -7/Data Miner | Free E-15 Imp | -7/Data Miner | Free Fabricated ------------ Lrn. Proton Cannon | x2 | -7/Factory | Preloaded G-50 Soldier | x3 | -6/Factory | Preloaded Repaired ---------- Plasma Cannon | 8% | -7/Factory | Broken Imp. Proton Missile Launcher | 2% | -4/Factory Cld. Particle Cannon | 23% | -4/Factory Adv. Particle Charger | 26% | -4/Factory Studied --------- Arm. Wheel | -8/Materials | Hacked Proton Missile Launcher | -7/Factory | Hacked Imp. Titanium Leg | -7/Factory | Hacked Hvy. Missile Launcher | -7/Factory | Hacked Arm. Huge Wheel | -6/Factory | Hacked Arm. Leg | -6/Factory | Hacked Plasma Rifle | -6/Factory | Hacked Thunder Leg | -5/Factory | Hacked Myomer Leg | -3/Research | Hacked Imp. Proton Missile Launcher | -3/Research | Hacked Gamma Bomb Array | -3/Testing | Hacked Biometal Leg | -3/Testing | Hacked Adv. Remote Datajack | -3/Testing | Hacked Particle Reactor | -3/Testing | Hacked Hvy. Shield Leg | -1/Access | Hacked Alien Tech Used ----------------- Core Cannon Phase Redirector Core Stripper Subatomic Replicator Achievements -------------- Special Forces Warlord Forever! Challenges ------------ None Game ------ Seed GrenadeStructuralShell Manual? 0 Play Time 12:26:59 Cumulative 508.7 hours Start 2026.04.20 @ 09:49:48 End 2026.04.22 @ 23:33:28 Sessions 39 Manual Loads 0 Difficulty Rogue Special Mode None Game No. 90 Rogue 90 Adventurer 0 Explorer 0 Win Type 7 Total 19 Types 7/1/5/1/1/0/1/2/0/1 Lore% 84 Gallery% 78 Achievement% 74 Wizard Run 0 Options --------- Layout 1 ASCII 0 Keyboard 1 Movement Vi Keybinds 1 Fullscreen 1 Font 36/Tamsyn Map View 50x40 Zoom Use 0% Tactical HUD 1 Map Filters NONE Filters NONE Steam 1 RUN: 9b7d9bc6-3433-4672-8249-61877808187b